Body Name,ONS SNAC ID,Pay Date,Transaction No,Amount �,Supplier Name,Company Registration No,Department,Account Name,CIPFA Service Reporting
Swale Borough Council,29UM,07/06/2017,1151289,881.73,ALPHA MECHANICAL CONTRACTORS LTD,10247265                 ,COMMUNITY SAFETY,Capital Constuction - CIS Works,Not used in this Structure
Swale Borough Council,29UM,07/06/2017,1151063,1000.00,REDACTED PERSONAL INFORMATION,                         ,HOUSING SERVICES,Homelessness  Prevention Services,Housing
Swale Borough Council,29UM,07/06/2017,1150967,277.77,AMICUS HORIZON,                         ,CAR PARKS,Rent,Highway and Transport Services
Swale Borough Council,29UM,07/06/2017,1151160,12881.69,APCOA PARKING (UK) LTD,2572947                  ,CAR PARKS,Private Contractors,Highway and Transport Services
Swale Borough Council,29UM,07/06/2017,1151160,19322.54,APCOA PARKING (UK) LTD,2572947                  ,CAR PARKS,Private Contractors,Highway and Transport Services
Swale Borough Council,29UM,07/06/2017,1151306,11225.00,ASCENDIT LIFTS LTD,3493530                  ,HOUSING SERVICES,Housing Renovation Grants,Not used in this Structure
Swale Borough Council,29UM,07/06/2017,1151307,4015.00,ASCENDIT LIFTS LTD,3493530                  ,HOUSING SERVICES,Housing Renovation Grants,Not used in this Structure
Swale Borough Council,29UM,07/06/2017,1151115,2288.00,BBM SUSTAINABLE DESIGN LTD,4597504                  ,COMMUNITY SAFETY,Capitalised Fees And Charges,Not used in this Structure
Swale Borough Council,29UM,07/06/2017,1151019,364.00,BIFFA MUNICIPAL SERVICES LTD,4321212                  ,COMMUNITY SAFETY,Trade Waste-Refuse,Cultural and Related Services
Swale Borough Council,29UM,07/06/2017,1151021,364.00,BIFFA MUNICIPAL SERVICES LTD,4321212                  ,COMMUNITY SAFETY,Trade Waste-Refuse,Cultural and Related Services
Swale Borough Council,29UM,07/06/2017,1151149,1218.76,BLENWOOD LTD,4383277                  ,LEISURE & OPEN SPACES,Grounds Contract Variations,Cultural and Related Services
Swale Borough Council,29UM,07/06/2017,1151150,1046.32,BLENWOOD LTD,4383277                  ,TOURISM & SPORTS DEVELOPMENT,Construction,Not used in this Structure
Swale Borough Council,29UM,07/06/2017,1151188,550.00,CHEGWORTH GRAPHIC,7683594                  ,SERVICE DELIVERY,Signage - External Funded by Grant & Other Income,Cultural and Related Services
Swale Borough Council,29UM,07/06/2017,1151189,1532.64,CHEGWORTH GRAPHIC,7683594                  ,SERVICE DELIVERY,Signage - External Funded by Grant & Other Income,Cultural and Related Services
Swale Borough Council,29UM,07/06/2017,1151253,666.66,CLARKES SPORTS STUDIO,                         ,LEISURE & OPEN SPACES,Grants & Subscriptions,Cultural and Related Services
Swale Borough Council,29UM,07/06/2017,1150988,8667.24,COMENSURA LTD,04085767                 ,HUMAN RESOURCES,Agency/Contract Staff,Internal Trading Cost Centres
Swale Borough Council,29UM,07/06/2017,1151137,1104.45,COMENSURA LTD,04085767                 ,HUMAN RESOURCES,Agency/Contract Staff,Internal Trading Cost Centres
Swale Borough Council,29UM,07/06/2017,1150901,305.15,CONTRACT SECURITY SERVICES,2461362                  ,EXCHEQUER,Cash Security,Internal Trading Cost Centres
Swale Borough Council,29UM,07/06/2017,1150901,4693.08,CONTRACT SECURITY SERVICES,2461362                  ,CAR PARKS,Cash Security,Highway and Transport Services
Swale Borough Council,29UM,07/06/2017,1151308,4200.00,DOLPHIN STAIRLIFTS (KENT),04181846                 ,HOUSING SERVICES,Housing Renovation Grants,Not used in this Structure
Swale Borough Council,29UM,07/06/2017,1150919,42500.00,DTZ TESCO STORES THE FORUM (RENT),                         ,CAR PARKS,Rent,Highway and Transport Services
Swale Borough Council,29UM,07/06/2017,1150919,8500.00,DTZ TESCO STORES THE FORUM (RENT),                         ,CAR PARKS,Rent,Highway and Transport Services
Swale Borough Council,29UM,07/06/2017,1151093,3982.82,ENVIROBLINDS LTD,08267736                 ,COMMUNITY SAFETY,Equipment,Not used in this Structure
Swale Borough Council,29UM,07/06/2017,1151255,950.00,FAMILY HOMES,                         ,HOUSING SERVICES,RDS - Landlord claim on Bond Scheme,Housing
Swale Borough Council,29UM,07/06/2017,1151256,600.00,FAMILY HOMES,                         ,HOUSING SERVICES,RDS - Landlord claim on Bond Scheme,Housing
Swale Borough Council,29UM,07/06/2017,1150986,1125.06,GLASDON U.K.LIMITED,2160576                  ,SERVICE DELIVERY,Maintenance - Grounds,Cultural and Related Services
Swale Borough Council,29UM,07/06/2017,1151195,1718.75,GRAHAM BOULDEN & COMPANY,                         ,CAR PARKS,Rent,Highway and Transport Services
Swale Borough Council,29UM,07/06/2017,1151223,418.40,H S JACKSON & SON (FENCING) LTD,                         ,LEISURE & OPEN SPACES,Maintenance - Grounds,Cultural and Related Services
Swale Borough Council,29UM,07/06/2017,1150615,3200.00,HEIGHTSAFE SYSTEMS LTD,07064393                 ,COMMUNITY SAFETY,Capital Constuction - CIS Works,Not used in this Structure
Swale Borough Council,29UM,07/06/2017,1151303,10183.59,HUBBARD & HOUGHTON CONSTRUCTION LTD,                         ,HOUSING SERVICES,Housing Renovation Grants,Not used in this Structure
Swale Borough Council,29UM,07/06/2017,1151304,1188.00,HUBBARD & HOUGHTON CONSTRUCTION LTD,                         ,HOUSING SERVICES,Housing Renovation Grants,Not used in this Structure
Swale Borough Council,29UM,07/06/2017,1151106,12500.00,KENT COMMUNITY HEALTH NHS TRUST,                         ,TOURISM & SPORTS DEVELOPMENT,Fees And Services,Cultural and Related Services
Swale Borough Council,29UM,07/06/2017,1151161,3500.00,KENT COUNTY COUNCIL,                         ,CHIEF EXECUTIVE,Kent & Medway Chief Execs - Forum Support,Internal Trading Cost Centres
Swale Borough Council,29UM,07/06/2017,1151215,5600.00,KENT COUNTY COUNCIL,                         ,MKS ICT,Computer Equipment & Materials,Internal Trading Cost Centres
Swale Borough Council,29UM,07/06/2017,1151290,330.00,KENT INVICTA CHAMBER OF COMMERCE,2794615                  ,ECONOMIC DEVELOPMENT,Fees And Services,Planning and Development Services
Swale Borough Council,29UM,07/06/2017,1151198,1350.00,KENT MESSENGER LTD,505554                   ,COMMUNICATIONS,Advertising & Promotion,Internal Trading Cost Centres
Swale Borough Council,29UM,07/06/2017,1151360,6.00,LAND REGISTRY - (DT),                         ,COMMUNITY SAFETY,Fees - Land Registry,Environmental and Regulatory Services
Swale Borough Council,29UM,07/06/2017,1151360,96.00,LAND REGISTRY - (DT),                         ,PROPERTY SERVICES,Fees - Land Registry,Trading Undertaking
Swale Borough Council,29UM,07/06/2017,1151360,241.00,LAND REGISTRY - (DT),                         ,REVENUE SERVICES,Fees - Land Registry,Central Services to the Public
Swale Borough Council,29UM,07/06/2017,1151360,12.00,LAND REGISTRY - (DT),                         ,PLANNING SERVICES,Fees - Land Registry,Planning and Development Services
Swale Borough Council,29UM,07/06/2017,1151360,120.00,LAND REGISTRY - (DT),                         ,PLANNING SERVICES,Fees - Land Registry,Planning and Development Services
Swale Borough Council,29UM,07/06/2017,1151360,12.00,LAND REGISTRY - (DT),                         ,HOUSING SERVICES,Fees - Land Registry,Housing
Swale Borough Council,29UM,07/06/2017,1151360,39.00,LAND REGISTRY - (DT),                         ,REVENUE SERVICES,Fees - Land Registry,Housing
Swale Borough Council,29UM,07/06/2017,1151360,18.00,LAND REGISTRY - (DT),                         ,MKS ENVIRONMENTAL SERVICES,Fees - Land Registry,Internal Trading Cost Centres
Swale Borough Council,29UM,07/06/2017,1151360,36.00,LAND REGISTRY - (DT),                         ,ENVIRONMENTAL RESPONSE TEAM,Fees - Land Registry,Internal Trading Cost Centres
Swale Borough Council,29UM,07/06/2017,1151360,22.00,LAND REGISTRY - (DT),                         ,PLANNING SERVICES,Fees - Land Registry,Internal Trading Cost Centres
Swale Borough Council,29UM,07/06/2017,1151360,9.00,LAND REGISTRY - (DT),                         ,CONTRACT & PROCUREMENT,Fees - Land Registry,Internal Trading Cost Centres
Swale Borough Council,29UM,07/06/2017,1151360,42.00,LAND REGISTRY - (DT),                         ,LEISURE & OPEN SPACES,Fees - Land Registry,Cultural and Related Services
Swale Borough Council,29UM,07/06/2017,1151360,6.00,LAND REGISTRY - (DT),                         ,LEISURE & OPEN SPACES,Fees - Land Registry,Cultural and Related Services
Swale Borough Council,29UM,07/06/2017,1151360,32.00,LAND REGISTRY - (DT),                         ,HOUSING SERVICES,Fees - Land Registry,Housing
Swale Borough Council,29UM,07/06/2017,1151360,60.00,LAND REGISTRY - (DT),                         ,HOUSING SERVICES,Fees - Land Registry,Housing
Swale Borough Council,29UM,07/06/2017,1151227,300.00,LEMAR LIMITED,04350292                 ,SERVICE DELIVERY,Private Contractors - CIS,Highway and Transport Services
Swale Borough Council,29UM,07/06/2017,1151227,245.00,LEMAR LIMITED,04350292                 ,SERVICE DELIVERY,Private Contractors - CIS,Highway and Transport Services
Swale Borough Council,29UM,07/06/2017,1150474,15864.00,LESSHOMELESS LIMITED,08458851                 ,HOUSING SERVICES,B & B - Landlords Payments,Housing
Swale Borough Council,29UM,07/06/2017,1151103,1734.00,MAG:NET SOLUTIONS LTD,4304138                  ,REVENUE SERVICES,Fees And Services,Central Services to the Public
Swale Borough Council,29UM,07/06/2017,1151103,866.00,MAG:NET SOLUTIONS LTD,4304138                  ,REVENUE SERVICES,Fees And Services,Housing
Swale Borough Council,29UM,07/06/2017,1151141,8628.00,MAIDSTONE BOROUGH COUNCIL,                         ,DEMOCRATIC & ELECTORAL SERVICES,Grants & Subscriptions,Corporate & Democratic Core
Swale Borough Council,29UM,07/06/2017,1150852,5000.00,MEDWAY PUBLIC SERVICES LTD,10041989                 ,HOUSING SERVICES,Homelessness  Prevention Services,Housing
Swale Borough Council,29UM,07/06/2017,1150954,976.25,METRIC GROUP LTD,2560839                  ,CAR PARKS,Equipment Purchase,Highway and Transport Services
Swale Borough Council,29UM,07/06/2017,1151175,655.00,METRIC GROUP LTD,2560839                  ,CAR PARKS,Fees - Licence,Highway and Transport Services
Swale Borough Council,29UM,07/06/2017,1151172,300.00,REDACTED PERSONAL INFORMATION,                         ,REVENUE SERVICES,Ex-Gratia Payments,Central Services to the Public
Swale Borough Council,29UM,07/06/2017,1151275,533.73,NPOWER,3432100                  ,COMMUNITY SAFETY,Electricity,Cultural and Related Services
Swale Borough Council,29UM,07/06/2017,1151111,2466.00,OFFICE FURNITURE ONLINE,                         ,COMMUNITY SAFETY,Furniture,Cultural and Related Services
Swale Borough Council,29UM,07/06/2017,1151111,723.20,OFFICE FURNITURE ONLINE,                         ,COMMUNITY SAFETY,Furniture,Cultural and Related Services
Swale Borough Council,29UM,07/06/2017,1151111,1150.00,OFFICE FURNITURE ONLINE,                         ,COMMUNITY SAFETY,Grants & Subscriptions,Central Services to the Public
Swale Borough Council,29UM,07/06/2017,1150487,28752.00,PARAMOUNT INDEPENDENT PROPERTY SERVICES,                         ,HOUSING SERVICES,B & B - Landlords Payments,Housing
Swale Borough Council,29UM,07/06/2017,1151236,290.33,PORTAKABIN LIMITED,685303                   ,LEISURE & OPEN SPACES,Maintenance - Grounds,Environmental and Regulatory Services
Swale Borough Council,29UM,07/06/2017,1151064,791.50,RSP RAIL TRAVEL ACCOUNT - (DT),                         ,FINANCIAL SERVICES,Travel Warrants (Staff Travel),Internal Trading Cost Centres
Swale Borough Council,29UM,07/06/2017,1151257,800.00,SHEPPEY ESTATES,                         ,HOUSING SERVICES,RDS - Landlord claim on Bond Scheme,Housing
Swale Borough Council,29UM,07/06/2017,1151277,600.00,SHEPPEY ESTATES,                         ,HOUSING SERVICES,Homelessness  Prevention Services,Housing
Swale Borough Council,29UM,07/06/2017,1151305,1507.88,SOUTH EAST BUILDING CO LTD,1786838                  ,HOUSING SERVICES,Housing Renovation Grants,Not used in this Structure
Swale Borough Council,29UM,07/06/2017,1151302,7111.24,STANNAH LIFT SERVICES,                         ,HOUSING SERVICES,Housing Renovation Grants,Not used in this Structure
Swale Borough Council,29UM,07/06/2017,1150728,1528.13,THE ALEXANDER CENTRE TRUST LIMITED,07281634                 ,COMMISSIONING & CUSTOMER CONTACT,Rent,Internal Trading Cost Centres
Swale Borough Council,29UM,07/06/2017,1151185,720.00,VENN GROUP LIMITED,                         ,MKS LEGAL SERVICES,Agency/Contract Staff,Internal Trading Cost Centres
Swale Borough Council,29UM,07/06/2017,1150894,1987.40,WHISTL UK LIMITED,04417047                 ,REVENUE SERVICES,Postage,Central Services to the Public
Swale Borough Council,29UM,07/06/2017,1150894,2.89,WHISTL UK LIMITED,04417047                 ,PLANNING SERVICES,Postage,Planning and Development Services
Swale Borough Council,29UM,07/06/2017,1150894,993.70,WHISTL UK LIMITED,04417047                 ,REVENUE SERVICES,Postage,Housing
Swale Borough Council,29UM,07/06/2017,1150894,27.49,WHISTL UK LIMITED,04417047                 ,LEISURE & OPEN SPACES,Postage,Internal Trading Cost Centres
Swale Borough Council,29UM,07/06/2017,1150894,22.45,WHISTL UK LIMITED,04417047                 ,CAR PARKS,Postage,Internal Trading Cost Centres
Swale Borough Council,29UM,07/06/2017,1150894,49.13,WHISTL UK LIMITED,04417047                 ,PROPERTY SERVICES,Postage,Holding Codes
Swale Borough Council,29UM,07/06/2017,1150894,278.31,WHISTL UK LIMITED,04417047                 ,DEMOCRATIC & ELECTORAL SERVICES,Postage,Central Services to the Public
Swale Borough Council,29UM,07/06/2017,1151016,287.50,WILLOW TREE HOME SOLUTIONS LTD,                         ,HOUSING SERVICES,Staying Put small repairs (contractors),Housing
Swale Borough Council,29UM,07/06/2017,1151017,469.00,WILLOW TREE HOME SOLUTIONS LTD,                         ,HOUSING SERVICES,Staying Put small repairs (contractors),Housing
Swale Borough Council,29UM,07/06/2017,1151310,4010.00,WILLOW TREE HOME SOLUTIONS LTD,                         ,HOUSING SERVICES,Housing Renovation Grants,Not used in this Structure
Swale Borough Council,29UM,07/06/2017,1151361,5000.00,WINCKWORTH SHERWOOD LLP,OC334359                 ,DIRECTOR OF REGENERATION,Capitalised Fees And Charges,Not used in this Structure
Swale Borough Council,29UM,14/06/2017,1150861,2475.00,ABAVUS LTD,6082412                  ,COMMISSIONING & CUSTOMER CONTACT,Payments in Year,Ledger/Suspense Codes
Swale Borough Council,29UM,14/06/2017,1151491,5473.17,ACORN MAINTENANCE SERVICES,3546898                  ,HOUSING SERVICES,Housing Renovation Grants,Not used in this Structure
Swale Borough Council,29UM,14/06/2017,1151202,2340.00,ALLPAY LTD,02933191                 ,EXCHEQUER,Bank Charges Pay Point,Internal Trading Cost Centres
Swale Borough Council,29UM,14/06/2017,1151260,-2340.00,ALLPAY LTD,02933191                 ,EXCHEQUER,Bank Charges Pay Point,Internal Trading Cost Centres
Swale Borough Council,29UM,14/06/2017,1151352,43.70,ALLPAY LTD,02933191                 ,REVENUE SERVICES,Bank Charges Pay Point,Central Services to the Public
Swale Borough Council,29UM,14/06/2017,1151352,2771.87,ALLPAY LTD,02933191                 ,REVENUE SERVICES,Bank Charges Pay Point,Central Services to the Public
Swale Borough Council,29UM,14/06/2017,1151352,2.31,ALLPAY LTD,02933191                 ,REVENUE SERVICES,Bank Charges Pay Point,Housing
Swale Borough Council,29UM,14/06/2017,1151352,51.92,ALLPAY LTD,02933191                 ,REVENUE SERVICES,Bank Charges Pay Point,Housing
Swale Borough Council,29UM,14/06/2017,1151352,59.84,ALLPAY LTD,02933191                 ,EXCHEQUER,Bank Charges Pay Point,Internal Trading Cost Centres
Swale Borough Council,29UM,14/06/2017,1151395,675.00,BATES JPW ADVERTISING LTD,784540                   ,ECONOMIC DEVELOPMENT,Recruitment Adverts - Staff,Planning and Development Services
Swale Borough Council,29UM,14/06/2017,1151162,3200.69,BLENWOOD LTD,4383277                  ,LEISURE & OPEN SPACES,Grounds Maint Suspense,Cultural and Related Services
Swale Borough Council,29UM,14/06/2017,1151421,2135.00,BT DEVELOPMENTS,                         ,HOUSING SERVICES,B & B - Landlords Payments,Housing
Swale Borough Council,29UM,14/06/2017,1151071,1369.00,CARRINGTON WEST LIMITED,07344853                 ,PLANNING SERVICES,Agency/Contract Staff,Internal Trading Cost Centres
Swale Borough Council,29UM,14/06/2017,1151427,1369.00,CARRINGTON WEST LIMITED,07344853                 ,PLANNING SERVICES,Agency/Contract Staff,Internal Trading Cost Centres
Swale Borough Council,29UM,14/06/2017,1151495,617.02,COLDWELL CONSTRUCTION LTD,4814340                  ,HOUSING SERVICES,Housing Renovation Grants,Not used in this Structure
Swale Borough Council,29UM,14/06/2017,1151331,2341.43,COMENSURA LTD,04085767                 ,HUMAN RESOURCES,Agency/Contract Staff,Internal Trading Cost Centres
Swale Borough Council,29UM,14/06/2017,1151301,3990.00,COMPLETE IT SYSTEMS LTD,06224858                 ,MKS ICT,Payments in Year,Ledger/Suspense Codes
Swale Borough Council,29UM,14/06/2017,1151465,500.00,DAVINGTON COUNTY PRIMARY SCHOOL,                         ,DEMOCRATIC & ELECTORAL SERVICES,Hire Of Premises,Ledger/Suspense Codes
Swale Borough Council,29UM,14/06/2017,1151490,5665.88,DAYTRAD LIMITED,7654373                  ,HOUSING SERVICES,Housing Renovation Grants,Not used in this Structure
Swale Borough Council,29UM,14/06/2017,1151291,440.00,DISCLOSURE & BARRING SERVICE (DT),                         ,LICENCING,Fees And Services,Environmental and Regulatory Services
Swale Borough Council,29UM,14/06/2017,1151496,2400.00,DOLPHIN STAIRLIFTS (KENT),04181846                 ,HOUSING SERVICES,Housing Renovation Grants,Not used in this Structure
Swale Borough Council,29UM,14/06/2017,1151489,2441.28,FAVERSHAM PLUMBING CENTRE,414131602                ,HOUSING SERVICES,Housing Renovation Grants,Not used in this Structure
Swale Borough Council,29UM,14/06/2017,1151180,981.96,GLASDON U.K.LIMITED,2160576                  ,LEISURE & OPEN SPACES,Equipment Purchase,Cultural and Related Services
Swale Borough Council,29UM,14/06/2017,1151443,250.00,HARTLIP VILLAGE HALL,                         ,DEMOCRATIC & ELECTORAL SERVICES,Hire Of Premises,Ledger/Suspense Codes
Swale Borough Council,29UM,14/06/2017,1151443,250.00,HARTLIP VILLAGE HALL,                         ,DEMOCRATIC & ELECTORAL SERVICES,Hire Of Premises,Ledger/Suspense Codes
Swale Borough Council,29UM,14/06/2017,1151492,2610.00,HIGHER ELEVATION LTD,                         ,HOUSING SERVICES,Housing Renovation Grants,Not used in this Structure
Swale Borough Council,29UM,14/06/2017,1151398,498.00,HUBBARD & HOUGHTON CONSTRUCTION LTD,                         ,HOUSING SERVICES,Staying Put small repairs (contractors),Housing
Swale Borough Council,29UM,14/06/2017,1151497,1456.70,HUBBARD & HOUGHTON CONSTRUCTION LTD,                         ,HOUSING SERVICES,Housing Renovation Grants,Not used in this Structure
Swale Borough Council,29UM,14/06/2017,1151498,4080.00,HUBBARD & HOUGHTON CONSTRUCTION LTD,                         ,HOUSING SERVICES,Housing Renovation Grants,Not used in this Structure
Swale Borough Council,29UM,14/06/2017,1151369,2112.96,KENT FIRE & RESCUE SERVICE,                         ,EMERGENCY PLANNING,Fees And Services,Central Services to the Public
Swale Borough Council,29UM,14/06/2017,1150601,2986.00,"KNIGHT, KAVANAGH & PAGE LTD",9145032                  ,LEISURE & OPEN SPACES,Consultancy/Specialist Advice,Cultural and Related Services
Swale Borough Council,29UM,14/06/2017,1151514,2607.52,LAKEVIEW VILLAGE HALL TRUST,                         ,ECONOMY & COMMUNITIES,Payments in Year,Ledger/Suspense Codes
Swale Borough Council,29UM,14/06/2017,1151327,300.00,LEMAR LIMITED,04350292                 ,SERVICE DELIVERY,Private Contractors - CIS,Environmental and Regulatory Services
Swale Borough Council,29UM,14/06/2017,1151327,50.00,LEMAR LIMITED,04350292                 ,SERVICE DELIVERY,Private Contractors - CIS,Environmental and Regulatory Services
Swale Borough Council,29UM,14/06/2017,1151328,300.00,LEMAR LIMITED,04350292                 ,SERVICE DELIVERY,Private Contractors - CIS,Environmental and Regulatory Services
Swale Borough Council,29UM,14/06/2017,1151328,50.00,LEMAR LIMITED,04350292                 ,SERVICE DELIVERY,Private Contractors - CIS,Environmental and Regulatory Services
Swale Borough Council,29UM,14/06/2017,1151346,300.00,LEMAR LIMITED,04350292                 ,LEISURE & OPEN SPACES,Capital Constuction - CIS Works,Not used in this Structure
Swale Borough Council,29UM,14/06/2017,1151089,280.00,LILAC ESTATES,                         ,HOUSING SERVICES,B & B - Landlords Payments,Housing
Swale Borough Council,29UM,14/06/2017,1151090,280.00,LILAC ESTATES,                         ,HOUSING SERVICES,B & B - Landlords Payments,Housing
Swale Borough Council,29UM,14/06/2017,1151091,280.00,LILAC ESTATES,                         ,HOUSING SERVICES,B & B - Landlords Payments,Housing
Swale Borough Council,29UM,14/06/2017,1151387,1090.00,LOCAL GOVERNMENT ASSOCIATION,                         ,DEMOCRATIC & ELECTORAL SERVICES,Conference,Corporate & Democratic Core
Swale Borough Council,29UM,14/06/2017,1151092,1260.00,LUSHLAND,4289261                  ,PLANNING SERVICES,Fees And Services,Planning and Development Services
Swale Borough Council,29UM,14/06/2017,1151269,1227.50,M.T.S. CLEANSING SERVICES LTD,2045340                  ,LEISURE & OPEN SPACES,Maintenance - Grounds,Cultural and Related Services
Swale Borough Council,29UM,14/06/2017,1151140,2000.00,MAIDSTONE BOROUGH COUNCIL,                         ,REVENUE SERVICES,Fees And Services,Central Services to the Public
Swale Borough Council,29UM,14/06/2017,1151258,1702.00,MATCHTECH,4426336                  ,PLANNING SERVICES,Agency/Contract Staff,Internal Trading Cost Centres
Swale Borough Council,29UM,14/06/2017,1151441,1702.00,MATCHTECH,4426336                  ,PLANNING SERVICES,Agency/Contract Staff,Internal Trading Cost Centres
Swale Borough Council,29UM,14/06/2017,1151442,1150.00,MATCHTECH,4426336                  ,PLANNING SERVICES,Agency/Contract Staff,Internal Trading Cost Centres
Swale Borough Council,29UM,14/06/2017,1151445,448.00,MAYLOW CONSTRUCTION LTD,                         ,LEISURE & OPEN SPACES,Maintenance - Grounds,Environmental and Regulatory Services
Swale Borough Council,29UM,14/06/2017,1150582,1612.00,MEDWAY ACCOMMODATION LIMITED,                         ,HOUSING SERVICES,B & B - Landlords Payments,Housing
Swale Borough Council,29UM,14/06/2017,1150582,335.83,MEDWAY ACCOMMODATION LIMITED,                         ,HOUSING SERVICES,B & B - Landlords Payments,Housing
Swale Borough Council,29UM,14/06/2017,1150788,247.33,MEDWAY ACCOMMODATION LIMITED,                         ,HOUSING SERVICES,B & B - Landlords Payments,Housing
Swale Borough Council,29UM,14/06/2017,1150788,1187.20,MEDWAY ACCOMMODATION LIMITED,                         ,HOUSING SERVICES,B & B - Landlords Payments,Housing
Swale Borough Council,29UM,14/06/2017,1151101,260.33,MEDWAY ACCOMMODATION LIMITED,                         ,HOUSING SERVICES,B & B - Landlords Payments,Housing
Swale Borough Council,29UM,14/06/2017,1151101,1249.60,MEDWAY ACCOMMODATION LIMITED,                         ,HOUSING SERVICES,B & B - Landlords Payments,Housing
Swale Borough Council,29UM,14/06/2017,1151425,940.80,MEDWAY ACCOMMODATION LIMITED,                         ,HOUSING SERVICES,B & B - Landlords Payments,Housing
Swale Borough Council,29UM,14/06/2017,1151425,196.00,MEDWAY ACCOMMODATION LIMITED,                         ,HOUSING SERVICES,B & B - Landlords Payments,Housing
Swale Borough Council,29UM,14/06/2017,1151426,365.50,MEDWAY ACCOMMODATION LIMITED,                         ,HOUSING SERVICES,B & B - Landlords Payments,Housing
Swale Borough Council,29UM,14/06/2017,1151426,1754.40,MEDWAY ACCOMMODATION LIMITED,                         ,HOUSING SERVICES,B & B - Landlords Payments,Housing
Swale Borough Council,29UM,14/06/2017,1151397,1000.00,MEDWAY PUBLIC SERVICES LTD,10041989                 ,COMMUNITY SAFETY,CCTV Monitoring Service,Environmental and Regulatory Services
Swale Borough Council,29UM,14/06/2017,1151379,700.00,MEGADALE ESTATES,                         ,HOUSING SERVICES,Homelessness  Prevention Services,Housing
Swale Borough Council,29UM,14/06/2017,1151139,4200.00,MELENGA BUSINESS SOLUTIONS LTD,06148446                 ,FINANCIAL SERVICES,Agency/Contract Staff,Internal Trading Cost Centres
Swale Borough Council,29UM,14/06/2017,1151066,1578.00,MIDLAND SOFTWARE LTD,1852206                  ,HUMAN RESOURCES,Computer Equipment & Materials,Internal Trading Cost Centres
Swale Borough Council,29UM,14/06/2017,1151211,17434.56,MONITOR CLEANING SERVICES LTD,02526388                 ,CONTRACT & PROCUREMENT,Private Contractors,Environmental and Regulatory Services
Swale Borough Council,29UM,14/06/2017,1151335,5891.83,MPS MARKETING SERVICES LIMITED,6360656                  ,DEMOCRATIC & ELECTORAL SERVICES,Printing - External Funded by Grant & Other Income,Ledger/Suspense Codes
Swale Borough Council,29UM,14/06/2017,1151235,400.00,MR J W GATES,                         ,SERVICE DELIVERY,Maintenance - Grounds,Cultural and Related Services
Swale Borough Council,29UM,14/06/2017,1151235,55.00,MR J W GATES,                         ,SERVICE DELIVERY,Maintenance - Grounds,Cultural and Related Services
Swale Borough Council,29UM,14/06/2017,1151349,5.00,MR J W GATES,                         ,SERVICE DELIVERY,Maintenance - Grounds,Cultural and Related Services
Swale Borough Council,29UM,14/06/2017,1151349,450.00,MR J W GATES,                         ,SERVICE DELIVERY,Maintenance - Grounds,Cultural and Related Services
Swale Borough Council,29UM,14/06/2017,1151404,600.00,MR J W GATES,                         ,LEISURE & OPEN SPACES,Grounds Contract Variations,Cultural and Related Services
Swale Borough Council,29UM,14/06/2017,1151444,300.00,NET CHURCH,                         ,DEMOCRATIC & ELECTORAL SERVICES,Hire Of Premises,Ledger/Suspense Codes
Swale Borough Council,29UM,14/06/2017,1151444,300.00,NET CHURCH,                         ,DEMOCRATIC & ELECTORAL SERVICES,Hire Of Premises,Ledger/Suspense Codes
Swale Borough Council,29UM,14/06/2017,1151373,140.00,NEWINGTON VILLAGE HALL,                         ,DEMOCRATIC & ELECTORAL SERVICES,Hire Of Premises,Ledger/Suspense Codes
Swale Borough Council,29UM,14/06/2017,1151373,140.00,NEWINGTON VILLAGE HALL,                         ,DEMOCRATIC & ELECTORAL SERVICES,Hire Of Premises,Ledger/Suspense Codes
Swale Borough Council,29UM,14/06/2017,1151414,259.29,NPOWER,                         ,LEISURE & OPEN SPACES,Electricity,Cultural and Related Services
Swale Borough Council,29UM,14/06/2017,1150709,8.50,O2 (UK) LTD,1743099                  ,COMMUNITY SAFETY,Cellphone,Planning and Development Services
Swale Borough Council,29UM,14/06/2017,1150709,7.00,O2 (UK) LTD,1743099                  ,COMMUNITY SAFETY,Cellphone,Planning and Development Services
Swale Borough Council,29UM,14/06/2017,1150709,49.00,O2 (UK) LTD,1743099                  ,COMMUNITY SAFETY,Cellphone,Environmental and Regulatory Services
Swale Borough Council,29UM,14/06/2017,1150709,9.50,O2 (UK) LTD,1743099                  ,TRANSFORMATION PROJECT,Cellphone,Corporate & Democratic Core
Swale Borough Council,29UM,14/06/2017,1150709,9.50,O2 (UK) LTD,1743099                  ,POLICY,Cellphone,Corporate & Democratic Core
Swale Borough Council,29UM,14/06/2017,1150709,12.00,O2 (UK) LTD,1743099                  ,PLANNING SERVICES,Cellphone,Planning and Development Services
Swale Borough Council,29UM,14/06/2017,1150709,4.00,O2 (UK) LTD,1743099                  ,PLANNING SERVICES,Cellphone,Planning and Development Services
Swale Borough Council,29UM,14/06/2017,1150709,19.50,O2 (UK) LTD,1743099                  ,EMERGENCY PLANNING,Cellphone,Central Services to the Public
Swale Borough Council,29UM,14/06/2017,1150709,26.10,O2 (UK) LTD,1743099                  ,SERVICE DELIVERY,Cellphone,Cultural and Related Services
Swale Borough Council,29UM,14/06/2017,1150709,37.00,O2 (UK) LTD,1743099                  ,HOUSING SERVICES,Cellphone,Housing
Swale Borough Council,29UM,14/06/2017,1150709,20.00,O2 (UK) LTD,1743099                  ,REVENUE SERVICES,Cellphone,Housing
Swale Borough Council,29UM,14/06/2017,1150709,7.00,O2 (UK) LTD,1743099                  ,HOUSING SERVICES,Cellphone,Housing
Swale Borough Council,29UM,14/06/2017,1150709,7.00,O2 (UK) LTD,1743099                  ,DEMOCRATIC & ELECTORAL SERVICES,Cellphone,Internal Trading Cost Centres
Swale Borough Council,29UM,14/06/2017,1150709,9.50,O2 (UK) LTD,1743099                  ,LICENCING,Cellphone,Internal Trading Cost Centres
Swale Borough Council,29UM,14/06/2017,1150709,95.00,O2 (UK) LTD,1743099                  ,PROPERTY SERVICES,Cellphone,Internal Trading Cost Centres
Swale Borough Council,29UM,14/06/2017,1150709,7.00,O2 (UK) LTD,1743099                  ,ECONOMY & COMMUNITIES,Cellphone,Internal Trading Cost Centres
Swale Borough Council,29UM,14/06/2017,1150709,19.00,O2 (UK) LTD,1743099                  ,TOURISM & SPORTS DEVELOPMENT,Cellphone,Internal Trading Cost Centres
Swale Borough Council,29UM,14/06/2017,1150709,30.64,O2 (UK) LTD,1743099                  ,ECONOMIC DEVELOPMENT,Cellphone,Internal Trading Cost Centres
Swale Borough Council,29UM,14/06/2017,1150709,19.06,O2 (UK) LTD,1743099                  ,SERVICE DELIVERY,Cellphone,Internal Trading Cost Centres
Swale Borough Council,29UM,14/06/2017,1150709,136.50,O2 (UK) LTD,1743099                  ,CONTRACT & PROCUREMENT,Cellphone,Internal Trading Cost Centres
Swale Borough Council,29UM,14/06/2017,1150709,50.00,O2 (UK) LTD,1743099                  ,MKS ENVIRONMENTAL SERVICES,Cellphone,Internal Trading Cost Centres
Swale Borough Council,29UM,14/06/2017,1150709,56.00,O2 (UK) LTD,1743099                  ,MKS ENVIRONMENTAL SERVICES,Cellphone,Internal Trading Cost Centres
Swale Borough Council,29UM,14/06/2017,1150709,96.00,O2 (UK) LTD,1743099                  ,ENVIRONMENTAL RESPONSE TEAM,Cellphone,Internal Trading Cost Centres
Swale Borough Council,29UM,14/06/2017,1150709,10.00,O2 (UK) LTD,1743099                  ,PLANNING SERVICES,Cellphone,Internal Trading Cost Centres
Swale Borough Council,29UM,14/06/2017,1150709,67.00,O2 (UK) LTD,1743099                  ,LEISURE & OPEN SPACES,Cellphone,Internal Trading Cost Centres
Swale Borough Council,29UM,14/06/2017,1150709,19.00,O2 (UK) LTD,1743099                  ,CHIEF EXECUTIVE,Cellphone,Internal Trading Cost Centres
Swale Borough Council,29UM,14/06/2017,1150709,9.50,O2 (UK) LTD,1743099                  ,DIRECTOR OF CORPORATE SERVICES,Cellphone,Internal Trading Cost Centres
Swale Borough Council,29UM,14/06/2017,1150709,9.50,O2 (UK) LTD,1743099                  ,DIRECTOR OF REGENERATION,Cellphone,Internal Trading Cost Centres
Swale Borough Council,29UM,14/06/2017,1150709,22.00,O2 (UK) LTD,1743099                  ,COMMISSIONING & CUSTOMER CONTACT,Cellphone,Internal Trading Cost Centres
Swale Borough Council,29UM,14/06/2017,1150709,7.03,O2 (UK) LTD,1743099                  ,COMMISSIONING & CUSTOMER CONTACT,Cellphone,Internal Trading Cost Centres
Swale Borough Council,29UM,14/06/2017,1150709,20.00,O2 (UK) LTD,1743099                  ,POLICY,Cellphone,Internal Trading Cost Centres
Swale Borough Council,29UM,14/06/2017,1150709,24.30,O2 (UK) LTD,1743099                  ,COMMUNICATIONS,Cellphone,Internal Trading Cost Centres
Swale Borough Council,29UM,14/06/2017,1150709,40.00,O2 (UK) LTD,1743099                  ,ENVIRONMENTAL RESPONSE TEAM,Cellphone,Internal Trading Cost Centres
Swale Borough Council,29UM,14/06/2017,1150709,35.00,O2 (UK) LTD,1743099                  ,MKS LEGAL SERVICES,Cellphone,Internal Trading Cost Centres
Swale Borough Council,29UM,14/06/2017,1150709,1.74,O2 (UK) LTD,1743099                  ,LEISURE & OPEN SPACES,Cellphone,Cultural and Related Services
Swale Borough Council,29UM,14/06/2017,1150709,0.25,O2 (UK) LTD,1743099                  ,LEISURE & OPEN SPACES,Cellphone,Cultural and Related Services
Swale Borough Council,29UM,14/06/2017,1150709,2.00,O2 (UK) LTD,1743099                  ,HOUSING SERVICES,Cellphone,Housing
Swale Borough Council,29UM,14/06/2017,1150709,28.00,O2 (UK) LTD,1743099                  ,HOUSING SERVICES,Cellphone,Housing
Swale Borough Council,29UM,14/06/2017,1150709,26.00,O2 (UK) LTD,1743099                  ,ENVIRONMENTAL RESPONSE TEAM,Cellphone,Environmental and Regulatory Services
Swale Borough Council,29UM,14/06/2017,1150709,9.00,O2 (UK) LTD,1743099                  ,TOURISM & SPORTS DEVELOPMENT,Cellphone,Cultural and Related Services
Swale Borough Council,29UM,14/06/2017,1150709,36.84,O2 (UK) LTD,1743099                  ,HOUSING SERVICES,Cellphone,Housing
Swale Borough Council,29UM,14/06/2017,1151436,3000.00,PORTAKABIN LIMITED,685303                   ,DEMOCRATIC & ELECTORAL SERVICES,Hire Of Premises,Ledger/Suspense Codes
Swale Borough Council,29UM,14/06/2017,1151323,336.00,PRIMESIGHT,1847728                  ,COMMUNICATIONS,Advertising & Promotion,Internal Trading Cost Centres
Swale Borough Council,29UM,14/06/2017,1151081,735.00,REARDON PROPERTIES,                         ,HOUSING SERVICES,B & B - Landlords Payments,Housing
Swale Borough Council,29UM,14/06/2017,1151082,490.00,REARDON PROPERTIES,                         ,HOUSING SERVICES,B & B - Landlords Payments,Housing
Swale Borough Council,29UM,14/06/2017,1151083,875.00,REARDON PROPERTIES,                         ,HOUSING SERVICES,B & B - Landlords Payments,Housing
Swale Borough Council,29UM,14/06/2017,1151084,490.00,REARDON PROPERTIES,                         ,HOUSING SERVICES,B & B - Landlords Payments,Housing
Swale Borough Council,29UM,14/06/2017,1151294,735.00,REARDON PROPERTIES,                         ,HOUSING SERVICES,B & B - Landlords Payments,Housing
Swale Borough Council,29UM,14/06/2017,1151295,490.00,REARDON PROPERTIES,                         ,HOUSING SERVICES,B & B - Landlords Payments,Housing
Swale Borough Council,29UM,14/06/2017,1151296,875.00,REARDON PROPERTIES,                         ,HOUSING SERVICES,B & B - Landlords Payments,Housing
Swale Borough Council,29UM,14/06/2017,1151297,490.00,REARDON PROPERTIES,                         ,HOUSING SERVICES,B & B - Landlords Payments,Housing
Swale Borough Council,29UM,14/06/2017,1151136,375.00,RURAL PLANNING LTD,4426249                  ,PLANNING SERVICES,Fees And Services,Planning and Development Services
Swale Borough Council,29UM,14/06/2017,1151073,582.13,SCOTTISH WATER BUSINESS STREAM LTD,SC294924                 ,CONTRACT & PROCUREMENT,Water - Metered,Environmental and Regulatory Services
Swale Borough Council,29UM,14/06/2017,1151108,5962.70,SCOTTISH WATER BUSINESS STREAM LTD,SC294924                 ,PROPERTY SERVICES,Water - Metered,Corporate & Democratic Core
Swale Borough Council,29UM,14/06/2017,1151108,3571.44,SCOTTISH WATER BUSINESS STREAM LTD,SC294924                 ,PROPERTY SERVICES,Water - Metered,Corporate & Democratic Core
Swale Borough Council,29UM,14/06/2017,1151272,926.96,SCOTTISH WATER BUSINESS STREAM LTD,SC294924                 ,CONTRACT & PROCUREMENT,Water - Metered,Environmental and Regulatory Services
Swale Borough Council,29UM,14/06/2017,1151244,10994.80,SERCO LEISURE OPERATING LIMITED,04687478                 ,LEISURE & OPEN SPACES,Procurement Contracts Only,Cultural and Related Services
Swale Borough Council,29UM,14/06/2017,1151340,35.26,SODEXO MOTIVATION SOLUTIONS UK LTD,2680629                  ,HUMAN RESOURCES,Fees And Services,Corporate & Democratic Core
Swale Borough Council,29UM,14/06/2017,1151293,3245.64,SOUTHERN COMMUNICATIONS LTD,1328040                  ,MKS ICT,Telephone,Corporate & Democratic Core
Swale Borough Council,29UM,14/06/2017,1151240,325.00,REDACTED PERSONAL INFORMATION,                         ,HOUSING SERVICES,Fees And Services,Housing
Swale Borough Council,29UM,14/06/2017,1151250,8500.00,SWALE COMMUNITY LEISURE LIMITED,31132R                   ,LEISURE & OPEN SPACES,Procurement Contracts Only,Cultural and Related Services
Swale Borough Council,29UM,14/06/2017,1151251,12038.82,SWALE COMMUNITY LEISURE LIMITED,31132R                   ,LEISURE & OPEN SPACES,Procurement Contracts Only,Cultural and Related Services
Swale Borough Council,29UM,14/06/2017,1151252,5800.00,SWALE COMMUNITY LEISURE LIMITED,31132R                   ,LEISURE & OPEN SPACES,Procurement Contracts Only,Cultural and Related Services
Swale Borough Council,29UM,14/06/2017,1151493,686.66,TERRY & CARR LTD,606827                   ,HOUSING SERVICES,Housing Renovation Grants,Not used in this Structure
Swale Borough Council,29UM,14/06/2017,1150758,179.59,THE PERFORMING RIGHT SOCIETY,134396                   ,REVENUE SERVICES,Fees And Services,Central Services to the Public
Swale Borough Council,29UM,14/06/2017,1150758,89.79,THE PERFORMING RIGHT SOCIETY,134396                   ,DEMOCRATIC & ELECTORAL SERVICES,Fees And Services,Corporate & Democratic Core
Swale Borough Council,29UM,14/06/2017,1150758,76.97,THE PERFORMING RIGHT SOCIETY,134396                   ,HOUSING SERVICES,Fees And Services,Housing
Swale Borough Council,29UM,14/06/2017,1150758,153.93,THE PERFORMING RIGHT SOCIETY,134396                   ,REVENUE SERVICES,Fees And Services,Housing
Swale Borough Council,29UM,14/06/2017,1150758,21.18,THE PERFORMING RIGHT SOCIETY,134396                   ,ECONOMIC DEVELOPMENT,Fees And Services,Internal Trading Cost Centres
Swale Borough Council,29UM,14/06/2017,1150758,25.66,THE PERFORMING RIGHT SOCIETY,134396                   ,CONTRACT & PROCUREMENT,Fees And Services,Internal Trading Cost Centres
Swale Borough Council,29UM,14/06/2017,1150758,80.02,THE PERFORMING RIGHT SOCIETY,134396                   ,CONTRACT & PROCUREMENT,Fees And Services,Internal Trading Cost Centres
Swale Borough Council,29UM,14/06/2017,1150758,51.31,THE PERFORMING RIGHT SOCIETY,134396                   ,LICENCING,Fees And Services,Environmental and Regulatory Services
Swale Borough Council,29UM,14/06/2017,1150758,10.59,THE PERFORMING RIGHT SOCIETY,134396                   ,HOUSING SERVICES,Fees And Services,Housing
Swale Borough Council,29UM,14/06/2017,1151463,180.00,THISTLE HILL COMMUNITY CENTRE,                         ,DEMOCRATIC & ELECTORAL SERVICES,Hire Of Premises,Ledger/Suspense Codes
Swale Borough Council,29UM,14/06/2017,1151463,180.00,THISTLE HILL COMMUNITY CENTRE,                         ,DEMOCRATIC & ELECTORAL SERVICES,Hire Of Premises,Ledger/Suspense Codes
Swale Borough Council,29UM,14/06/2017,1151463,180.00,THISTLE HILL COMMUNITY CENTRE,                         ,DEMOCRATIC & ELECTORAL SERVICES,Hire Of Premises,Ledger/Suspense Codes
Swale Borough Council,29UM,14/06/2017,1151299,16485.00,THOMSON REUTERS,1679046                  ,MKS LEGAL SERVICES,"Books, Journals & e - resources",Internal Trading Cost Centres
Swale Borough Council,29UM,14/06/2017,1151116,1295.00,TRAFALGAR TAVERN LTD,07999329                 ,HOUSING SERVICES,B & B - Landlords Payments,Housing
Swale Borough Council,29UM,14/06/2017,1151276,1505.00,TRAFALGAR TAVERN LTD,07999329                 ,HOUSING SERVICES,B & B - Landlords Payments,Housing
Swale Borough Council,29UM,14/06/2017,1151458,1770.00,TRAFALGAR TAVERN LTD,07999329                 ,HOUSING SERVICES,B & B - Landlords Payments,Housing
Swale Borough Council,29UM,14/06/2017,1151448,1760.00,TUNBRIDGE WELLS BOROUGH COUNCIL,                         ,POLICY,Fees And Services,Internal Trading Cost Centres
Swale Borough Council,29UM,14/06/2017,1151049,420.00,UPM TILHILL,3242286                  ,LEISURE & OPEN SPACES,Maintenance - Grounds,Cultural and Related Services
Swale Borough Council,29UM,14/06/2017,1151381,560.00,VENN GROUP LIMITED,                         ,MKS LEGAL SERVICES,Agency/Contract Staff,Internal Trading Cost Centres
Swale Borough Council,29UM,14/06/2017,1151182,1617.00,VIVID RESOURCING LIMITED,06459262                 ,PLANNING SERVICES,Agency/Contract Staff,Internal Trading Cost Centres
Swale Borough Council,29UM,14/06/2017,1151183,1376.90,VIVID RESOURCING LIMITED,06459262                 ,PLANNING SERVICES,Agency/Contract Staff,Internal Trading Cost Centres
Swale Borough Council,29UM,14/06/2017,1151184,1391.25,VIVID RESOURCING LIMITED,06459262                 ,PLANNING SERVICES,Agency/Contract Staff,Internal Trading Cost Centres
Swale Borough Council,29UM,14/06/2017,1151390,1435.00,VIVID RESOURCING LIMITED,06459262                 ,PLANNING SERVICES,Agency/Contract Staff,Internal Trading Cost Centres
Swale Borough Council,29UM,14/06/2017,1151391,1596.00,VIVID RESOURCING LIMITED,06459262                 ,PLANNING SERVICES,Agency/Contract Staff,Internal Trading Cost Centres
Swale Borough Council,29UM,14/06/2017,1151288,900.00,VP PROPERTY DEVELOPMENT LTD,                         ,HOUSING SERVICES,B & B - Landlords Payments,Housing
Swale Borough Council,29UM,14/06/2017,1151337,320.00,WEST FAVERSHAM COMMUNITY ASSOCIATION,                         ,DEMOCRATIC & ELECTORAL SERVICES,Hire Of Premises,Ledger/Suspense Codes
Swale Borough Council,29UM,14/06/2017,1151326,3120.00,WESTCOUNTRY GROUP,4314613                  ,REVENUE SERVICES,Stationery,Central Services to the Public
Swale Borough Council,29UM,14/06/2017,1151080,714.52,WHISTL UK LIMITED,04417047                 ,REVENUE SERVICES,Postage,Central Services to the Public
Swale Borough Council,29UM,14/06/2017,1151080,4.53,WHISTL UK LIMITED,04417047                 ,PLANNING SERVICES,Postage,Planning and Development Services
Swale Borough Council,29UM,14/06/2017,1151080,357.25,WHISTL UK LIMITED,04417047                 ,REVENUE SERVICES,Postage,Housing
Swale Borough Council,29UM,14/06/2017,1151080,2.22,WHISTL UK LIMITED,04417047                 ,LEISURE & OPEN SPACES,Postage,Internal Trading Cost Centres
Swale Borough Council,29UM,14/06/2017,1151080,11.17,WHISTL UK LIMITED,04417047                 ,CAR PARKS,Postage,Internal Trading Cost Centres
Swale Borough Council,29UM,14/06/2017,1151080,325.77,WHISTL UK LIMITED,04417047                 ,PROPERTY SERVICES,Postage,Holding Codes
Swale Borough Council,29UM,14/06/2017,1151080,222.23,WHISTL UK LIMITED,04417047                 ,DEMOCRATIC & ELECTORAL SERVICES,Postage,Central Services to the Public
Swale Borough Council,29UM,14/06/2017,1151243,8456.00,WHITE RESIDENTIAL,                         ,HOUSING SERVICES,B & B - Landlords Payments,Housing
Swale Borough Council,29UM,14/06/2017,1151401,468.00,WILLOW TREE HOME SOLUTIONS LTD,                         ,HOUSING SERVICES,Staying Put small repairs (contractors),Housing
Swale Borough Council,29UM,14/06/2017,1151447,708.00,WILLOW TREE HOME SOLUTIONS LTD,                         ,HOUSING SERVICES,Staying Put small repairs (contractors),Housing
Swale Borough Council,29UM,14/06/2017,1151454,354.00,WILLOW TREE HOME SOLUTIONS LTD,                         ,HOUSING SERVICES,Staying Put small repairs (contractors),Housing
Swale Borough Council,29UM,14/06/2017,1151454,43.00,WILLOW TREE HOME SOLUTIONS LTD,                         ,HOUSING SERVICES,Staying Put small repairs (contractors),Housing
Swale Borough Council,29UM,14/06/2017,1151499,6043.00,WILLOW TREE HOME SOLUTIONS LTD,                         ,HOUSING SERVICES,Housing Renovation Grants,Not used in this Structure
Swale Borough Council,29UM,21/06/2017,1151214,172.00,A T BLINDS,                         ,PROPERTY SERVICES,Non-Planned Building Maintenance,Corporate & Democratic Core
Swale Borough Council,29UM,21/06/2017,1151214,1323.00,A T BLINDS,                         ,PROPERTY SERVICES,Non-Planned Building Maintenance,Corporate & Democratic Core
Swale Borough Council,29UM,21/06/2017,1151214,700.00,A T BLINDS,                         ,PROPERTY SERVICES,Non-Planned Building Maintenance,Corporate & Democratic Core
Swale Borough Council,29UM,21/06/2017,1151214,145.00,A T BLINDS,                         ,PROPERTY SERVICES,Non-Planned Building Maintenance,Corporate & Democratic Core
Swale Borough Council,29UM,21/06/2017,1151206,46.02,ALLSTAR BUSINESS SOLUTIONS LTD - (DT),1073098                  ,DEMOCRATIC & ELECTORAL SERVICES,Petrol/Derv & Oil,Corporate & Democratic Core
Swale Borough Council,29UM,21/06/2017,1151206,46.23,ALLSTAR BUSINESS SOLUTIONS LTD - (DT),1073098                  ,SERVICE DELIVERY,Petrol/Derv & Oil,Cultural and Related Services
Swale Borough Council,29UM,21/06/2017,1151206,256.47,ALLSTAR BUSINESS SOLUTIONS LTD - (DT),1073098                  ,ENVIRONMENTAL RESPONSE TEAM,Fuel For Contract Vehicles,Internal Trading Cost Centres
Swale Borough Council,29UM,21/06/2017,1151206,48.33,ALLSTAR BUSINESS SOLUTIONS LTD - (DT),1073098                  ,ENVIRONMENTAL RESPONSE TEAM,Fuel For Contract Vehicles,Environmental and Regulatory Services
Swale Borough Council,29UM,21/06/2017,1151518,780.00,AYS LTD,                         ,LEISURE & OPEN SPACES,Maintenance - Grounds,Cultural and Related Services
Swale Borough Council,29UM,21/06/2017,1151102,3640.00,BIFFA MUNICIPAL SERVICES LTD,4321212                  ,PROPERTY SERVICES,Trade Waste-Refuse,Corporate & Democratic Core
Swale Borough Council,29UM,21/06/2017,1151474,1562.18,CANON UK LTD,1264300                  ,PROPERTY SERVICES,Equipment Maintenance,Internal Trading Cost Centres
Swale Borough Council,29UM,21/06/2017,1151475,-1562.18,CANON UK LTD,1264300                  ,PROPERTY SERVICES,Equipment Maintenance,Internal Trading Cost Centres
Swale Borough Council,29UM,21/06/2017,1151476,1278.60,CANON UK LTD,1264300                  ,PROPERTY SERVICES,Equipment Maintenance,Internal Trading Cost Centres
Swale Borough Council,29UM,21/06/2017,1151393,8834.00,CBS MAINTENANCE SERVICES LTD,                         ,PROPERTY SERVICES,Non-Planned Building Maintenance,Corporate & Democratic Core
Swale Borough Council,29UM,21/06/2017,1151194,375.00,CHURCH JESUS CHRIST LATTER DAY ST,                         ,PROPERTY SERVICES,Rent,Corporate & Democratic Core
Swale Borough Council,29UM,21/06/2017,1151561,4283.54,COMENSURA LTD,04085767                 ,HUMAN RESOURCES,Agency/Contract Staff,Internal Trading Cost Centres
Swale Borough Council,29UM,21/06/2017,1151190,1425.29,ELECTORAL REFORM SERVICES,2263092                  ,DEMOCRATIC & ELECTORAL SERVICES,Printing - External Funded by Grant & Other Income,Ledger/Suspense Codes
Swale Borough Council,29UM,21/06/2017,1151191,1990.55,ELECTORAL REFORM SERVICES,2263092                  ,DEMOCRATIC & ELECTORAL SERVICES,Printing - External Funded by Grant & Other Income,Ledger/Suspense Codes
Swale Borough Council,29UM,21/06/2017,1151192,489.60,ELECTORAL REFORM SERVICES,2263092                  ,DEMOCRATIC & ELECTORAL SERVICES,Printing - External Funded by Grant & Other Income,Ledger/Suspense Codes
Swale Borough Council,29UM,21/06/2017,1151586,3043.29,ELECTORAL REFORM SERVICES,2263092                  ,DEMOCRATIC & ELECTORAL SERVICES,Printing - External Funded by Grant & Other Income,Ledger/Suspense Codes
Swale Borough Council,29UM,21/06/2017,1151586,27032.72,ELECTORAL REFORM SERVICES,2263092                  ,DEMOCRATIC & ELECTORAL SERVICES,Postage,Ledger/Suspense Codes
Swale Borough Council,29UM,21/06/2017,1151589,4420.50,ENVITECH EUROPE LTD,SC367372                 ,MKS ENVIRONMENTAL SERVICES,Private Contractors,Environmental and Regulatory Services
Swale Borough Council,29UM,21/06/2017,1151112,960.00,GULLY HOWARD TECHNICAL,5128356                  ,PROPERTY SERVICES,Service Contracts,Corporate & Democratic Core
Swale Borough Council,29UM,21/06/2017,1151254,226.00,HMCTS (DT),                         ,ENVIRONMENTAL RESPONSE TEAM,Fees And Services,Internal Trading Cost Centres
Swale Borough Council,29UM,21/06/2017,1151254,220.00,HMCTS (DT),                         ,MKS LEGAL SERVICES,Fees And Services,Internal Trading Cost Centres
Swale Borough Council,29UM,21/06/2017,1151334,500.00,IDEAS TEST,                         ,ECONOMIC DEVELOPMENT,Fees And Services,Planning and Development Services
Swale Borough Council,29UM,21/06/2017,1151382,682.00,IMPERIAL POLYTHENE PRODUCTS LTD,3082042                  ,CONTRACT & PROCUREMENT,Waste and Recycling Promotion / Comm's Projects,Environmental and Regulatory Services
Swale Borough Council,29UM,21/06/2017,1151480,500.00,J N CLEARANCE,                         ,LEISURE & OPEN SPACES,Maintenance - Grounds,Cultural and Related Services
Swale Borough Council,29UM,21/06/2017,1151483,3250.00,J N CLEARANCE,                         ,CONTRACT & PROCUREMENT,"Clearance Of Waste,Fly Tipping",Environmental and Regulatory Services
Swale Borough Council,29UM,21/06/2017,1151484,700.20,J N CLEARANCE,                         ,DEMOCRATIC & ELECTORAL SERVICES,Fees And Services,Ledger/Suspense Codes
Swale Borough Council,29UM,21/06/2017,1151484,696.05,J N CLEARANCE,                         ,DEMOCRATIC & ELECTORAL SERVICES,Fees And Services,Ledger/Suspense Codes
Swale Borough Council,29UM,21/06/2017,1151107,318.00,JACKSON LIFT SERVICES LTD,2186996                  ,PROPERTY SERVICES,Service Contracts,Corporate & Democratic Core
Swale Borough Council,29UM,21/06/2017,1151205,1550.00,JASMIL KENNELS,05595524                 ,ENVIRONMENTAL RESPONSE TEAM,Kennelling Of Dogs,Environmental and Regulatory Services
Swale Borough Council,29UM,21/06/2017,1151205,-185.00,JASMIL KENNELS,05595524                 ,ENVIRONMENTAL RESPONSE TEAM,Income collected by Dog Kennels,Environmental and Regulatory Services
Swale Borough Council,29UM,21/06/2017,1151602,21043.38,KENT COUNTY COUNCIL,                         ,COMMUNITY SAFETY,Fees And Services,Planning and Development Services
Swale Borough Council,29UM,21/06/2017,1151603,4750.00,KENT COUNTY COUNCIL,                         ,LEISURE & OPEN SPACES,Equipment Purchase,Cultural and Related Services
Swale Borough Council,29UM,21/06/2017,1151125,702.48,KENT COUNTY COUNCIL (KCS),                         ,PROPERTY SERVICES,Service Contracts,Corporate & Democratic Core
Swale Borough Council,29UM,21/06/2017,1151429,3856.96,KENT COUNTY COUNCIL (KCS),                         ,PROPERTY SERVICES,Electricity,Corporate & Democratic Core
Swale Borough Council,29UM,21/06/2017,1151457,1340.92,KENT COUNTY COUNCIL (KCS),                         ,PROPERTY SERVICES,Gas,Corporate & Democratic Core
Swale Borough Council,29UM,21/06/2017,1151386,545.00,LOCAL GOVERNMENT ASSOCIATION,                         ,CHIEF EXECUTIVE,Conference,Internal Trading Cost Centres
Swale Borough Council,29UM,21/06/2017,1151142,10624.00,MAIDSTONE BOROUGH COUNCIL,                         ,PLANNING SERVICES,MKS Charges for Land Charges,Central Services to the Public
Swale Borough Council,29UM,21/06/2017,1151143,55088.00,MAIDSTONE BOROUGH COUNCIL,                         ,PLANNING SERVICES,MKS Charges for Planning,Internal Trading Cost Centres
Swale Borough Council,29UM,21/06/2017,1151144,11861.00,MAIDSTONE BOROUGH COUNCIL,                         ,PLANNING SERVICES,MKS Charges for Land Charges,Central Services to the Public
Swale Borough Council,29UM,21/06/2017,1151282,62024.63,MAIDSTONE BOROUGH COUNCIL,                         ,HUMAN RESOURCES,MKS Charges for HR Service,Internal Trading Cost Centres
Swale Borough Council,29UM,21/06/2017,1151487,35200.00,MAIDSTONE BOROUGH COUNCIL,                         ,DEMOCRATIC & ELECTORAL SERVICES,Grants & Subscriptions,Corporate & Democratic Core
Swale Borough Council,29UM,21/06/2017,1151720,978568.00,MAIDSTONE BOROUGH COUNCIL - DT,                         ,FINANCIAL SERVICES,Tariff to Gvt,Taxation and Non-Specific Grant Income
Swale Borough Council,29UM,21/06/2017,1151521,944.80,MOBILE MINI,2862423                  ,DEMOCRATIC & ELECTORAL SERVICES,Hire Of Premises,Ledger/Suspense Codes
Swale Borough Council,29UM,21/06/2017,1151524,150.00,MR J W GATES,                         ,SERVICE DELIVERY,Maintenance - Grounds,Cultural and Related Services
Swale Borough Council,29UM,21/06/2017,1151524,100.00,MR J W GATES,                         ,SERVICE DELIVERY,Maintenance - Grounds,Cultural and Related Services
Swale Borough Council,29UM,21/06/2017,1151524,50.00,MR J W GATES,                         ,SERVICE DELIVERY,Maintenance - Grounds,Cultural and Related Services
Swale Borough Council,29UM,21/06/2017,1151434,4000.00,NETWORK RAIL INFRASTRUCTURE LTD,                         ,ECONOMIC DEVELOPMENT,Capitalised Fees And Charges,Not used in this Structure
Swale Borough Council,29UM,21/06/2017,1151413,278.24,NPOWER,                         ,CAR PARKS,Electricity,Highway and Transport Services
Swale Borough Council,29UM,21/06/2017,1151526,293.49,NPOWER,                         ,MKS ENVIRONMENTAL SERVICES,Electricity,Internal Trading Cost Centres
Swale Borough Council,29UM,21/06/2017,1151539,590.22,NPOWER,                         ,LEISURE & OPEN SPACES,Electricity,Cultural and Related Services
Swale Borough Council,29UM,21/06/2017,1151329,3430.80,P BINNIE CONSULTANCY LTD,07794784                 ,ECONOMIC DEVELOPMENT,Consultancy/Specialist Advice,Planning and Development Services
Swale Borough Council,29UM,21/06/2017,1151099,243.36,PHS GROUP LTD,770813                   ,PROPERTY SERVICES,Service Contracts,Corporate & Democratic Core
Swale Borough Council,29UM,21/06/2017,1151099,78.00,PHS GROUP LTD,770813                   ,PROPERTY SERVICES,Service Contracts,Corporate & Democratic Core
Swale Borough Council,29UM,21/06/2017,1151099,25.35,PHS GROUP LTD,770813                   ,PROPERTY SERVICES,Service Contracts,Corporate & Democratic Core
Swale Borough Council,29UM,21/06/2017,1151099,192.40,PHS GROUP LTD,770813                   ,PROPERTY SERVICES,Service Contracts,Corporate & Democratic Core
Swale Borough Council,29UM,21/06/2017,1151516,289.93,PREMIER PAPER GROUP LTD,                         ,PROPERTY SERVICES,Paper,Internal Trading Cost Centres
Swale Borough Council,29UM,21/06/2017,1151562,350.00,QUEENBOROUGH TOWN COMMUNITY CENTRE,                         ,DEMOCRATIC & ELECTORAL SERVICES,Hire Of Premises,Ledger/Suspense Codes
Swale Borough Council,29UM,21/06/2017,1151562,350.00,QUEENBOROUGH TOWN COMMUNITY CENTRE,                         ,DEMOCRATIC & ELECTORAL SERVICES,Hire Of Premises,Ledger/Suspense Codes
Swale Borough Council,29UM,21/06/2017,1151722,208.34,RBS PURCHASING CARD (DT) - FLOWERS BY BEATRICE,,DEMOCRATIC & ELECTORAL SERVICES,Floral Tributes,Corporate & Democratic Core
Swale Borough Council,29UM,21/06/2017,1151722,6.70,RBS PURCHASING CARD (DT) - SAINSBURY'S,                         ,DEMOCRATIC & ELECTORAL SERVICES,Catering Provisions,Corporate & Democratic Core
Swale Borough Council,29UM,21/06/2017,1151722,11.50,RBS PURCHASING CARD (DT) - TRANSPORT FOR LONDON,                         ,DEMOCRATIC & ELECTORAL SERVICES,Petrol/Derv & Oil,Corporate & Democratic Core
Swale Borough Council,29UM,21/06/2017,1151722,73.75,RBS PURCHASING CARD (DT) - VAULTY MANOR,                         ,DEMOCRATIC & ELECTORAL SERVICES,Conference,Corporate & Democratic Core
Swale Borough Council,29UM,21/06/2017,1151722,151.56,RBS PURCHASING CARD (DT) - ENTERPRISE RENT-A-CAR,                         ,DEMOCRATIC & ELECTORAL SERVICES,Fees And Services,Ledger/Suspense Codes
Swale Borough Council,29UM,21/06/2017,1151722,99.17,RBS PURCHASING CARD (DT) - CONISTON HOTEL,                         ,DEMOCRATIC & ELECTORAL SERVICES,Fees And Services,Ledger/Suspense Codes
Swale Borough Council,29UM,21/06/2017,1151722,99.17,RBS PURCHASING CARD (DT) - CONISTON HOTEL,                         ,DEMOCRATIC & ELECTORAL SERVICES,Fees And Services,Ledger/Suspense Codes
Swale Borough Council,29UM,21/06/2017,1151722,35.00,RBS PURCHASING CARD (DT) - SWALE BOROUGH COUNCIL,                         ,DEMOCRATIC & ELECTORAL SERVICES,Fees And Services,Ledger/Suspense Codes
Swale Borough Council,29UM,21/06/2017,1151723,1.60,RBS PURCHASING CARD (DT) - TESCO ,,TOURISM & SPORTS DEVELOPMENT,Catering Provisions,Internal Trading Cost Centres
Swale Borough Council,29UM,21/06/2017,1151723,6.67,RBS PURCHASING CARD (DT) - TESCO ,,TOURISM & SPORTS DEVELOPMENT,Catering Provisions,Internal Trading Cost Centres
Swale Borough Council,29UM,21/06/2017,1151724,22.70,RBS PURCHASING CARD (DT) - SOUTH EASTERN TRAINS,,PROPERTY SERVICES,Travel Warrants (Staff Travel),Internal Trading Cost Centres
Swale Borough Council,29UM,21/06/2017,1151725,6.30,RBS PURCHASING CARD (DT) - SAINSBURY'S,,DIRECTOR OF CORPORATE SERVICES,Catering Provisions,Internal Trading Cost Centres
Swale Borough Council,29UM,21/06/2017,1151725,14.80,RBS PURCHASING CARD (DT) - SAINSBURY'S,,DIRECTOR OF CORPORATE SERVICES,Catering Provisions,Internal Trading Cost Centres
Swale Borough Council,29UM,21/06/2017,1151725,12.00,RBS PURCHASING CARD (DT) - M&S,,DIRECTOR OF CORPORATE SERVICES,Catering Provisions,Internal Trading Cost Centres
Swale Borough Council,29UM,21/06/2017,1151726,109.99,RBS PURCHASING CARD (DT) - ARGOS,,HOUSING SERVICES,General Maintenance,Housing
Swale Borough Council,29UM,21/06/2017,1151726,22.40,RBS PURCHASING CARD (DT) - WILKO,,HOUSING SERVICES,General Maintenance,Housing
Swale Borough Council,29UM,21/06/2017,1151726,20.00,RBS PURCHASING CARD (DT) - BARGIN BOOZE,,HOUSING SERVICES,Gas,Housing
Swale Borough Council,29UM,21/06/2017,1151726,20.50,RBS PURCHASING CARD (DT) - BARGIN BOOZE,,HOUSING SERVICES,Electricity,Housing
Swale Borough Council,29UM,21/06/2017,1151727,5.69,RBS PURCHASING CARD (DT) - CARD FACTORY,,CHIEF EXECUTIVE,Stationery,Public Health
Swale Borough Council,29UM,21/06/2017,1151727,63.63,RBS PURCHASING CARD (DT) - POUNDLAND,,CHIEF EXECUTIVE,Catering Provisions,Public Health
Swale Borough Council,29UM,21/06/2017,1151727,6.44,RBS PURCHASING CARD (DT) - AMAZON,,CHIEF EXECUTIVE,Stationery,Public Health
Swale Borough Council,29UM,21/06/2017,1151727,4.98,RBS PURCHASING CARD (DT) - AMAZON,,CHIEF EXECUTIVE,Stationery,Public Health
Swale Borough Council,29UM,21/06/2017,1151727,3.03,RBS PURCHASING CARD (DT) - AMAZON,,CHIEF EXECUTIVE,Stationery,Public Health
Swale Borough Council,29UM,21/06/2017,1151728,200.00,RBS PURCHASING CARD (DT) - INTERCONTINENTAL,                         ,TRANSFORMATION PROJECT,Conference,Corporate & Democratic Core
Swale Borough Council,29UM,21/06/2017,1151728,19.98,RBS PURCHASING CARD (DT) - ARGOS,                         ,REVENUE SERVICES,Stationery,Housing
Swale Borough Council,29UM,21/06/2017,1151728,170.00,RBS PURCHASING CARD (DT) - M&S,                         ,REVENUE SERVICES,Catering Provisions,Housing
Swale Borough Council,29UM,21/06/2017,1151729,885.00,RBS PURCHASING CARD (DT) - HMCTS,                         ,REVENUE SERVICES,Fees And Services,Central Services to the Public
Swale Borough Council,29UM,21/06/2017,1151730,80.35,RBS PURCHASING CARD (DT) - SHELL,,HOUSING SERVICES,Fuel For Contract Vehicles,Housing
Swale Borough Council,29UM,21/06/2017,1151730,26.58,RBS PURCHASING CARD (DT) - HOMEBASE,,HOUSING SERVICES,Staying Put - Materials,Housing
Swale Borough Council,29UM,21/06/2017,1151730,9.18,RBS PURCHASING CARD (DT) - W J ODDS,,HOUSING SERVICES,Staying Put - Materials,Housing
Swale Borough Council,29UM,21/06/2017,1151730,0.04,RBS PURCHASING CARD (DT) - W J ODDS,,HOUSING SERVICES,Staying Put - Materials,Housing
Swale Borough Council,29UM,21/06/2017,1151730,77.87,RBS PURCHASING CARD (DT) - SHELL,,HOUSING SERVICES,Fuel For Contract Vehicles,Housing
Swale Borough Council,29UM,21/06/2017,1151731,-9.70,RBS PURCHASING CARD (DT) - MY HERMES,,MKS LEGAL SERVICES,Courier Service,Internal Trading Cost Centres
Swale Borough Council,29UM,21/06/2017,1151731,-6.08,RBS PURCHASING CARD (DT) - MY HERMES,,MKS LEGAL SERVICES,Courier Service,Internal Trading Cost Centres
Swale Borough Council,29UM,21/06/2017,1151731,6.10,RBS PURCHASING CARD (DT) - PAYBYPHONE PARKING TWBC,,MKS LEGAL SERVICES,Car Park Fees,Internal Trading Cost Centres
Swale Borough Council,29UM,21/06/2017,1151731,6.20,RBS PURCHASING CARD (DT) - PAYBYPHONE PARKING TWBC,,MKS LEGAL SERVICES,Car Park Fees,Internal Trading Cost Centres
Swale Borough Council,29UM,21/06/2017,1151731,6.78,RBS PURCHASING CARD (DT) - PAYBYPHONE PARKING TWBC,,MKS LEGAL SERVICES,Car Park Fees,Internal Trading Cost Centres
Swale Borough Council,29UM,21/06/2017,1151731,6.10,RBS PURCHASING CARD (DT) - PAYBYPHONE PARKING TWBC,,MKS LEGAL SERVICES,Car Park Fees,Internal Trading Cost Centres
Swale Borough Council,29UM,21/06/2017,1151731,6.10,RBS PURCHASING CARD (DT) - PAYBYPHONE PARKING TWBC,,MKS LEGAL SERVICES,Car Park Fees,Internal Trading Cost Centres
Swale Borough Council,29UM,21/06/2017,1151731,6.78,RBS PURCHASING CARD (DT) - PAYBYPHONE PARKING TWBC,,MKS LEGAL SERVICES,Car Park Fees,Internal Trading Cost Centres
Swale Borough Council,29UM,21/06/2017,1151731,32.28,RBS PURCHASING CARD (DT) - AMAZON,,MKS LEGAL SERVICES,Stationery,Internal Trading Cost Centres
Swale Borough Council,29UM,21/06/2017,1151731,32.28,RBS PURCHASING CARD (DT) - AMAZON,,MKS LEGAL SERVICES,Stationery,Internal Trading Cost Centres
Swale Borough Council,29UM,21/06/2017,1151732,9.96,RBS PURCHASING CARD (DT) - HOMEBASE,,HOUSING SERVICES,Non-Planned Building Maintenance,Housing
Swale Borough Council,29UM,21/06/2017,1151732,10.67,RBS PURCHASING CARD (DT) - WICKES,,HOUSING SERVICES,Non-Planned Building Maintenance,Housing
Swale Borough Council,29UM,21/06/2017,1151733,20.98,RBS PURCHASING CARD (DT) - LTR SUPPLIES,,LEISURE & OPEN SPACES,Maintenance - Grounds,Cultural and Related Services
Swale Borough Council,29UM,21/06/2017,1151392,1142.67,ROYAL MAIL GROUP LTD,4138203                  ,PROPERTY SERVICES,Postage,Holding Codes
Swale Borough Council,29UM,21/06/2017,1151519,5378.38,ROYAL MAIL GROUP LTD,4138203                  ,DEMOCRATIC & ELECTORAL SERVICES,Postage,Ledger/Suspense Codes
Swale Borough Council,29UM,21/06/2017,1151567,6257.12,ROYAL MAIL GROUP LTD,4138203                  ,DEMOCRATIC & ELECTORAL SERVICES,Postage,Ledger/Suspense Codes
Swale Borough Council,29UM,21/06/2017,1151567,17.64,ROYAL MAIL GROUP LTD,4138203                  ,DEMOCRATIC & ELECTORAL SERVICES,Postage,Ledger/Suspense Codes
Swale Borough Council,29UM,21/06/2017,1151567,2.17,ROYAL MAIL GROUP LTD,4138203                  ,DEMOCRATIC & ELECTORAL SERVICES,Postage,Ledger/Suspense Codes
Swale Borough Council,29UM,21/06/2017,1151568,5993.21,ROYAL MAIL GROUP LTD,4138203                  ,DEMOCRATIC & ELECTORAL SERVICES,Postage,Ledger/Suspense Codes
Swale Borough Council,29UM,21/06/2017,1151569,1008.14,ROYAL MAIL GROUP LTD,4138203                  ,DEMOCRATIC & ELECTORAL SERVICES,Postage,Ledger/Suspense Codes
Swale Borough Council,29UM,21/06/2017,1151641,541.62,ROYAL MAIL GROUP LTD,4138203                  ,REVENUE SERVICES,Postage,Central Services to the Public
Swale Borough Council,29UM,21/06/2017,1151439,1006.78,SCOTTISH WATER BUSINESS STREAM LTD,SC294924                 ,CONTRACT & PROCUREMENT,Water - Metered,Environmental and Regulatory Services
Swale Borough Council,29UM,21/06/2017,1151606,562.00,SODEXO MOTIVATION SOLUTIONS UK LTD,02680629                 ,HUMAN RESOURCES,Fees And Services,Corporate & Democratic Core
Swale Borough Council,29UM,21/06/2017,1151680,520.00,TAYLOR BROTHERS LTD,                         ,SERVICE DELIVERY,Private Contractors - CIS,Environmental and Regulatory Services
Swale Borough Council,29UM,21/06/2017,1151385,265.00,THREE TOWNS OFFICE EQUIPMENT LTD,                         ,LEISURE & OPEN SPACES,Furniture,Internal Trading Cost Centres
Swale Borough Council,29UM,21/06/2017,1151580,967.50,VENN GROUP LIMITED,                         ,MKS LEGAL SERVICES,Agency/Contract Staff,Internal Trading Cost Centres
Swale Borough Council,29UM,21/06/2017,1151581,913.75,VENN GROUP LIMITED,                         ,MKS LEGAL SERVICES,Agency/Contract Staff,Internal Trading Cost Centres
Swale Borough Council,29UM,21/06/2017,1151582,600.00,VENN GROUP LIMITED,                         ,MKS LEGAL SERVICES,Agency/Contract Staff,Internal Trading Cost Centres
Swale Borough Council,29UM,21/06/2017,1151422,350.00,WEALD WOODSCAPES LTD,8028446                  ,LEISURE & OPEN SPACES,Maintenance - Grounds,Cultural and Related Services
Swale Borough Council,29UM,21/06/2017,1151265,-1669.25,WICKSTEED LEISURE LTD,603152                   ,LEISURE & OPEN SPACES,Construction,Not used in this Structure
Swale Borough Council,29UM,21/06/2017,1151266,33385.00,WICKSTEED LEISURE LTD,603152                   ,LEISURE & OPEN SPACES,Construction,Not used in this Structure
Swale Borough Council,29UM,21/06/2017,1151607,4525.00,WYNDEHAM PETERBOROUGH LTD,2261988                  ,COMMUNICATIONS,Developing & Printing,Corporate & Democratic Core
Swale Borough Council,29UM,28/06/2017,1151742,500.00,A.C MACKLIN FENCING,10311550                 ,LEISURE & OPEN SPACES,Maintenance - Grounds,Cultural and Related Services
Swale Borough Council,29UM,28/06/2017,1151742,622.98,A.C MACKLIN FENCING,10311550                 ,LEISURE & OPEN SPACES,Maintenance - Grounds,Cultural and Related Services
Swale Borough Council,29UM,28/06/2017,1151892,2470.59,ACORN MAINTENANCE SERVICES,3546898                  ,HOUSING SERVICES,Housing Renovation Grants,Not used in this Structure
Swale Borough Council,29UM,28/06/2017,1151735,1304.78,AGILE APPLICATIONS LIMITED,7443094                  ,PLANNING SERVICES,Computer Equipment & Materials,Central Services to the Public
Swale Borough Council,29UM,28/06/2017,1151639,474.15,AKW MEDI-CARE LTD,2764920                  ,HOUSING SERVICES,Staying Put - Materials,Housing
Swale Borough Council,29UM,28/06/2017,1151203,500.00,ALLPAY LTD,02933191                 ,FINANCIAL SERVICES,Computer Equipment & Materials,Internal Trading Cost Centres
Swale Borough Council,29UM,28/06/2017,1151874,2000.00,ALPHA MECHANICAL CONTRACTORS LTD,10247265                 ,COMMUNITY SAFETY,Capital Constuction - CIS Works,Not used in this Structure
Swale Borough Council,29UM,28/06/2017,1151874,6080.10,ALPHA MECHANICAL CONTRACTORS LTD,10247265                 ,COMMUNITY SAFETY,Capital Constuction - CIS Works,Not used in this Structure
Swale Borough Council,29UM,28/06/2017,1151888,11905.90,AQUATHERM INSTALLATIONS LTD,09476072                 ,HOUSING SERVICES,Housing Renovation Grants,Not used in this Structure
Swale Borough Council,29UM,28/06/2017,1151890,5285.00,ASCENDIT LIFTS LTD,3493530                  ,HOUSING SERVICES,Housing Renovation Grants,Not used in this Structure
Swale Borough Council,29UM,28/06/2017,1151699,925.00,AYS LTD,                         ,LEISURE & OPEN SPACES,Maintenance - Grounds,Cultural and Related Services
Swale Borough Council,29UM,28/06/2017,1151812,225.00,BAPCHILD & TONGE VILLAGE HALL,                         ,DEMOCRATIC & ELECTORAL SERVICES,Hire Of Premises,Ledger/Suspense Codes
Swale Borough Council,29UM,28/06/2017,1151812,225.00,BAPCHILD & TONGE VILLAGE HALL,                         ,DEMOCRATIC & ELECTORAL SERVICES,Hire Of Premises,Ledger/Suspense Codes
Swale Borough Council,29UM,28/06/2017,1151163,99465.28,BLENWOOD LTD,4383277                  ,LEISURE & OPEN SPACES,Grounds Maint Suspense,Cultural and Related Services
Swale Borough Council,29UM,28/06/2017,1151813,140.00,BOBBING VILLAGE HALL,                         ,DEMOCRATIC & ELECTORAL SERVICES,Hire Of Premises,Ledger/Suspense Codes
Swale Borough Council,29UM,28/06/2017,1151813,140.00,BOBBING VILLAGE HALL,                         ,DEMOCRATIC & ELECTORAL SERVICES,Hire Of Premises,Ledger/Suspense Codes
Swale Borough Council,29UM,28/06/2017,1151814,187.00,BORDEN PARISH HALL,                         ,DEMOCRATIC & ELECTORAL SERVICES,Hire Of Premises,Ledger/Suspense Codes
Swale Borough Council,29UM,28/06/2017,1151814,187.00,BORDEN PARISH HALL,                         ,DEMOCRATIC & ELECTORAL SERVICES,Hire Of Premises,Ledger/Suspense Codes
Swale Borough Council,29UM,28/06/2017,1151815,265.00,BOUGHTON VILLAGE HALL,                         ,DEMOCRATIC & ELECTORAL SERVICES,Hire Of Premises,Ledger/Suspense Codes
Swale Borough Council,29UM,28/06/2017,1151815,265.00,BOUGHTON VILLAGE HALL,                         ,DEMOCRATIC & ELECTORAL SERVICES,Hire Of Premises,Ledger/Suspense Codes
Swale Borough Council,29UM,28/06/2017,1151816,265.00,BREDGAR VILLAGE HALL,                         ,DEMOCRATIC & ELECTORAL SERVICES,Hire Of Premises,Ledger/Suspense Codes
Swale Borough Council,29UM,28/06/2017,1151816,265.00,BREDGAR VILLAGE HALL,                         ,DEMOCRATIC & ELECTORAL SERVICES,Hire Of Premises,Ledger/Suspense Codes
Swale Borough Council,29UM,28/06/2017,1151350,4764.12,BT REDCARE,1800000                  ,COMMUNITY SAFETY,CCTV Line Rental,Environmental and Regulatory Services
Swale Borough Council,29UM,28/06/2017,1151839,150.00,REDACTED PERSONAL INFORMATION,                         ,DEMOCRATIC & ELECTORAL SERVICES,Hire Of Premises,Ledger/Suspense Codes
Swale Borough Council,29UM,28/06/2017,1151839,150.00,REDACTED PERSONAL INFORMATION,                         ,DEMOCRATIC & ELECTORAL SERVICES,Hire Of Premises,Ledger/Suspense Codes
Swale Borough Council,29UM,28/06/2017,1151673,5160.00,CBS MAINTENANCE SERVICES LTD,                         ,PROPERTY SERVICES,Buildings Maintenance,Corporate & Democratic Core
Swale Borough Council,29UM,28/06/2017,1151741,2228.33,CHILDREN AND FAMILIES LTD,                         ,COMMUNITY SAFETY,Fees And Services,Planning and Development Services
Swale Borough Council,29UM,28/06/2017,1151831,505.00,CHILDREN AND FAMILIES LTD,                         ,DEMOCRATIC & ELECTORAL SERVICES,Hire Of Premises,Ledger/Suspense Codes
Swale Borough Council,29UM,28/06/2017,1151831,505.00,CHILDREN AND FAMILIES LTD,                         ,DEMOCRATIC & ELECTORAL SERVICES,Hire Of Premises,Ledger/Suspense Codes
Swale Borough Council,29UM,28/06/2017,1151889,623.10,COLDWELL CONSTRUCTION LTD,4814340                  ,HOUSING SERVICES,Housing Renovation Grants,Not used in this Structure
Swale Borough Council,29UM,28/06/2017,1151430,395.00,COVERGOLD LTD,2765148                  ,PLANNING SERVICES,Computer Equipment & Materials,Planning and Development Services
Swale Borough Council,29UM,28/06/2017,1151736,551.04,DCB (KENT) LIMITED,03532339                 ,PROPERTY SERVICES,Non-Planned Building Maintenance,Cultural and Related Services
Swale Borough Council,29UM,28/06/2017,1151736,58.78,DCB (KENT) LIMITED,03532339                 ,PROPERTY SERVICES,Non-Planned Building Maintenance,Corporate & Democratic Core
Swale Borough Council,29UM,28/06/2017,1151736,5708.45,DCB (KENT) LIMITED,03532339                 ,CONTRACT & PROCUREMENT,Non-Planned Building Maintenance,Environmental and Regulatory Services
Swale Borough Council,29UM,28/06/2017,1151736,43.00,DCB (KENT) LIMITED,03532339                 ,CONTRACT & PROCUREMENT,Non-Planned Building Maintenance,Environmental and Regulatory Services
Swale Borough Council,29UM,28/06/2017,1151736,190.40,DCB (KENT) LIMITED,03532339                 ,CONTRACT & PROCUREMENT,Non-Planned Building Maintenance,Environmental and Regulatory Services
Swale Borough Council,29UM,28/06/2017,1151736,10304.00,DCB (KENT) LIMITED,03532339                 ,LEISURE & OPEN SPACES,Non-Planned Building Maintenance,Cultural and Related Services
Swale Borough Council,29UM,28/06/2017,1151842,170.00,DODDINGTON VILLAGE HALL,                         ,DEMOCRATIC & ELECTORAL SERVICES,Hire Of Premises,Ledger/Suspense Codes
Swale Borough Council,29UM,28/06/2017,1151842,170.00,DODDINGTON VILLAGE HALL,                         ,DEMOCRATIC & ELECTORAL SERVICES,Hire Of Premises,Ledger/Suspense Codes
Swale Borough Council,29UM,28/06/2017,1151898,5040.00,DOLPHIN STAIRLIFTS (KENT),04181846                 ,HOUSING SERVICES,Housing Renovation Grants,Not used in this Structure
Swale Borough Council,29UM,28/06/2017,1151899,5000.00,DOLPHIN STAIRLIFTS (KENT),04181846                 ,HOUSING SERVICES,Housing Renovation Grants,Not used in this Structure
Swale Borough Council,29UM,28/06/2017,1151159,10860.97,DOVER DISTRICT COUNCIL,                         ,HOUSING SERVICES,Computer Equipment & Materials,Housing
Swale Borough Council,29UM,28/06/2017,1151820,160.00,EASTLING VILLAGE HALL,                         ,DEMOCRATIC & ELECTORAL SERVICES,Hire Of Premises,Ledger/Suspense Codes
Swale Borough Council,29UM,28/06/2017,1151820,160.00,EASTLING VILLAGE HALL,                         ,DEMOCRATIC & ELECTORAL SERVICES,Hire Of Premises,Ledger/Suspense Codes
Swale Borough Council,29UM,28/06/2017,1151821,200.00,ETHELBERT ROAD SCHOOL FUND,                         ,DEMOCRATIC & ELECTORAL SERVICES,Hire Of Premises,Ledger/Suspense Codes
Swale Borough Council,29UM,28/06/2017,1151821,200.00,ETHELBERT ROAD SCHOOL FUND,                         ,DEMOCRATIC & ELECTORAL SERVICES,Hire Of Premises,Ledger/Suspense Codes
Swale Borough Council,29UM,28/06/2017,1151809,1200.00,FAMILY MOSAIC HOUSING,                         ,HOUSING SERVICES,Staying Put - Materials,Housing
Swale Borough Council,29UM,28/06/2017,1151767,20000.00,FAVERSHAM POOL MNGMT.COMMITTEE,                         ,ECONOMY & COMMUNITIES,Grants & Subscriptions,Cultural and Related Services
Swale Borough Council,29UM,28/06/2017,1151677,295.00,FIRE & SECURITY CONSULTANCY LTD,5946022                  ,PROPERTY SERVICES,Service Contracts,Corporate & Democratic Core
Swale Borough Council,29UM,28/06/2017,1151050,350.00,FMC (FABRICS & MAINT CONT) LTD,07509198                 ,COMMUNITY SAFETY,Capital Constuction - CIS Works,Not used in this Structure
Swale Borough Council,29UM,28/06/2017,1151050,855.55,FMC (FABRICS & MAINT CONT) LTD,07509198                 ,COMMUNITY SAFETY,Capital Constuction - CIS Works,Not used in this Structure
Swale Borough Council,29UM,28/06/2017,1151050,221.98,FMC (FABRICS & MAINT CONT) LTD,07509198                 ,COMMUNITY SAFETY,Capital Constuction - CIS Works,Not used in this Structure
Swale Borough Council,29UM,28/06/2017,1151050,-42.83,FMC (FABRICS & MAINT CONT) LTD,07509198                 ,COMMUNITY SAFETY,Capital Constuction - CIS Works,Not used in this Structure
Swale Borough Council,29UM,28/06/2017,1151051,1000.00,FMC (FABRICS & MAINT CONT) LTD,07509198                 ,COMMUNITY SAFETY,Capital Constuction - CIS Works,Not used in this Structure
Swale Borough Council,29UM,28/06/2017,1151051,4756.65,FMC (FABRICS & MAINT CONT) LTD,07509198                 ,COMMUNITY SAFETY,Capital Constuction - CIS Works,Not used in this Structure
Swale Borough Council,29UM,28/06/2017,1151051,-172.70,FMC (FABRICS & MAINT CONT) LTD,07509198                 ,COMMUNITY SAFETY,Capital Constuction - CIS Works,Not used in this Structure
Swale Borough Council,29UM,28/06/2017,1151517,3600.00,GLEEDS COST MANAGEMENT LIMITED,06472932                 ,ECONOMIC DEVELOPMENT,Consultancy/Specialist Advice,Planning and Development Services
Swale Borough Council,29UM,28/06/2017,1151822,200.00,GROVE PARK PRIMARY SCHOOL,                         ,DEMOCRATIC & ELECTORAL SERVICES,Hire Of Premises,Ledger/Suspense Codes
Swale Borough Council,29UM,28/06/2017,1151822,200.00,GROVE PARK PRIMARY SCHOOL,                         ,DEMOCRATIC & ELECTORAL SERVICES,Hire Of Premises,Ledger/Suspense Codes
Swale Borough Council,29UM,28/06/2017,1151894,2605.50,HIGHER ELEVATION LTD,                         ,HOUSING SERVICES,Housing Renovation Grants,Not used in this Structure
Swale Borough Council,29UM,28/06/2017,1151604,1449.00,HMC COMPLIANCE LTD,                         ,PROPERTY SERVICES,Service Contracts,Corporate & Democratic Core
Swale Borough Council,29UM,28/06/2017,1151605,783.15,HMC COMPLIANCE LTD,                         ,PROPERTY SERVICES,Service Contracts,Corporate & Democratic Core
Swale Borough Council,29UM,28/06/2017,1151891,7053.00,HUBBARD & HOUGHTON CONSTRUCTION LTD,                         ,HOUSING SERVICES,Housing Renovation Grants,Not used in this Structure
Swale Borough Council,29UM,28/06/2017,1151895,4281.18,J & D SYSTEMS,                         ,HOUSING SERVICES,Housing Renovation Grants,Not used in this Structure
Swale Borough Council,29UM,28/06/2017,1151896,5400.00,J & D SYSTEMS,                         ,HOUSING SERVICES,Housing Renovation Grants,Not used in this Structure
Swale Borough Council,29UM,28/06/2017,1151590,300.00,J N CLEARANCE,                         ,PROPERTY SERVICES,Non-Planned Building Maintenance,Corporate & Democratic Core
Swale Borough Council,29UM,28/06/2017,1151479,4815.08,K JONES ELECTRICAL,3668823362               ,COMMUNITY SAFETY,Capital Constuction - CIS Works,Not used in this Structure
Swale Borough Council,29UM,28/06/2017,1151845,270.00,KENT COUNTY COUNCIL,                         ,DEMOCRATIC & ELECTORAL SERVICES,Hire Of Premises,Ledger/Suspense Codes
Swale Borough Council,29UM,28/06/2017,1151845,270.00,KENT COUNTY COUNCIL,                         ,DEMOCRATIC & ELECTORAL SERVICES,Hire Of Premises,Ledger/Suspense Codes
Swale Borough Council,29UM,28/06/2017,1151873,39733.33,LAKEVIEW VILLAGE HALL TRUST,                         ,COMMUNITY SAFETY,Grants & Subscriptions,Cultural and Related Services
Swale Borough Council,29UM,28/06/2017,1151823,200.00,LANSDOWNE PRIMARY SCHOOL,                         ,DEMOCRATIC & ELECTORAL SERVICES,Hire Of Premises,Ledger/Suspense Codes
Swale Borough Council,29UM,28/06/2017,1151823,200.00,LANSDOWNE PRIMARY SCHOOL,                         ,DEMOCRATIC & ELECTORAL SERVICES,Hire Of Premises,Ledger/Suspense Codes
Swale Borough Council,29UM,28/06/2017,1151046,2955.00,LONDON WALL DESIGN LIMITED,2268642                  ,COMMUNITY SAFETY,Capital Constuction - CIS Works,Not used in this Structure
Swale Borough Council,29UM,28/06/2017,1151336,6895.00,LONDON WALL DESIGN LIMITED,2268642                  ,COMMUNITY SAFETY,Capital Constuction - CIS Works,Not used in this Structure
Swale Borough Council,29UM,28/06/2017,1151760,315.00,M.T.S. CLEANSING SERVICES LTD,2045340                  ,LEISURE & OPEN SPACES,Clearing Cesspools,Cultural and Related Services
Swale Borough Council,29UM,28/06/2017,1151199,2090.00,MAGEES GUESTHOUSE,                         ,HOUSING SERVICES,B & B - Landlords Payments,Housing
Swale Borough Council,29UM,28/06/2017,1151344,665.00,MAGEES GUESTHOUSE,                         ,HOUSING SERVICES,B & B - Landlords Payments,Housing
Swale Borough Council,29UM,28/06/2017,1151592,1120.00,MAGEES GUESTHOUSE,                         ,HOUSING SERVICES,B & B - Landlords Payments,Housing
Swale Borough Council,29UM,28/06/2017,1150963,61574.02,MAIDSTONE BOROUGH COUNCIL,                         ,MKS ICT,Computer Equipment & Materials,Internal Trading Cost Centres
Swale Borough Council,29UM,28/06/2017,1151449,1717.15,MAIDSTONE BOROUGH COUNCIL,                         ,CONTRACT & PROCUREMENT,Equipment Purchase,Environmental and Regulatory Services
Swale Borough Council,29UM,28/06/2017,1151450,49331.76,MAIDSTONE BOROUGH COUNCIL,                         ,CONTRACT & PROCUREMENT,Equipment Purchase,Environmental and Regulatory Services
Swale Borough Council,29UM,28/06/2017,1151633,30773.79,MAIDSTONE BOROUGH COUNCIL,                         ,MKS ICT,Computer Equipment & Materials,Internal Trading Cost Centres
Swale Borough Council,29UM,28/06/2017,1151740,373.14,MAIDSTONE BOROUGH COUNCIL,                         ,MKS ICT,Equipment Rental,Holding Codes
Swale Borough Council,29UM,28/06/2017,1151692,315.00,MAYLOW CONSTRUCTION LTD,                         ,LEISURE & OPEN SPACES,Construction,Not used in this Structure
Swale Borough Council,29UM,28/06/2017,1151692,2072.00,MAYLOW CONSTRUCTION LTD,                         ,LEISURE & OPEN SPACES,Maintenance - Grounds,Cultural and Related Services
Swale Borough Council,29UM,28/06/2017,1151692,2443.00,MAYLOW CONSTRUCTION LTD,                         ,LEISURE & OPEN SPACES,Maintenance - Grounds,Cultural and Related Services
Swale Borough Council,29UM,28/06/2017,1151423,2198.40,MEDWAY ACCOMMODATION LIMITED,                         ,HOUSING SERVICES,B & B - Landlords Payments,Housing
Swale Borough Council,29UM,28/06/2017,1151423,458.00,MEDWAY ACCOMMODATION LIMITED,                         ,HOUSING SERVICES,B & B - Landlords Payments,Housing
Swale Borough Council,29UM,28/06/2017,1151424,328.83,MEDWAY ACCOMMODATION LIMITED,                         ,HOUSING SERVICES,B & B - Landlords Payments,Housing
Swale Borough Council,29UM,28/06/2017,1151424,1578.40,MEDWAY ACCOMMODATION LIMITED,                         ,HOUSING SERVICES,B & B - Landlords Payments,Housing
Swale Borough Council,29UM,28/06/2017,1151338,1100.00,MEDWAY PUBLIC SERVICES LTD,10041989                 ,COMMUNITY SAFETY,CCTV Monitoring Service,Environmental and Regulatory Services
Swale Borough Council,29UM,28/06/2017,1151690,2736.33,MICROGEN BANKING SYSTEMS LTD,03089430                 ,MKS ICT,Computer Equipment & Materials,Internal Trading Cost Centres
Swale Borough Council,29UM,28/06/2017,1151825,165.00,MILSTEAD VILLAGE HALL,                         ,DEMOCRATIC & ELECTORAL SERVICES,Hire Of Premises,Ledger/Suspense Codes
Swale Borough Council,29UM,28/06/2017,1151825,165.00,MILSTEAD VILLAGE HALL,                         ,DEMOCRATIC & ELECTORAL SERVICES,Hire Of Premises,Ledger/Suspense Codes
Swale Borough Council,29UM,28/06/2017,1151826,500.00,MINSTER C P SCHOOL,                         ,DEMOCRATIC & ELECTORAL SERVICES,Hire Of Premises,Ledger/Suspense Codes
Swale Borough Council,29UM,28/06/2017,1151826,500.00,MINSTER C P SCHOOL,                         ,DEMOCRATIC & ELECTORAL SERVICES,Hire Of Premises,Ledger/Suspense Codes
Swale Borough Council,29UM,28/06/2017,1151810,4806.00,MPS MARKETING SERVICES LIMITED,6360656                  ,DEMOCRATIC & ELECTORAL SERVICES,Printing - External Funded by Grant & Other Income,Ledger/Suspense Codes
Swale Borough Council,29UM,28/06/2017,1150968,360.00,REDACTED PERSONAL INFORMATION,                         ,HOUSING SERVICES,Homelessness  Prevention Services,Housing
Swale Borough Council,29UM,28/06/2017,1151827,132.00,NEWNHAM VILLAGE HALL COMMITTEE,                         ,DEMOCRATIC & ELECTORAL SERVICES,Hire Of Premises,Ledger/Suspense Codes
Swale Borough Council,29UM,28/06/2017,1151827,132.00,NEWNHAM VILLAGE HALL COMMITTEE,                         ,DEMOCRATIC & ELECTORAL SERVICES,Hire Of Premises,Ledger/Suspense Codes
Swale Borough Council,29UM,28/06/2017,1151556,448.53,NPOWER,                         ,CONTRACT & PROCUREMENT,Electricity,Environmental and Regulatory Services
Swale Borough Council,29UM,28/06/2017,1150918,2429.15,OXLEY SHUTTERS LTD,3325633                  ,COMMUNITY SAFETY,Capital Constuction - CIS Works,Not used in this Structure
Swale Borough Council,29UM,28/06/2017,1151955,15697.00,PEAC HOLDINGS (UK) LTD (DT),3088213                  ,LEISURE & OPEN SPACES,Contracts,Cultural and Related Services
Swale Borough Council,29UM,28/06/2017,1151789,300.00,PHOENIX SOFTWARE LTD,                         ,LICENCING,Computer Equipment & Materials,Environmental and Regulatory Services
Swale Borough Council,29UM,28/06/2017,1151829,300.00,PRESTON SCHOOLROOM TRUST,                         ,DEMOCRATIC & ELECTORAL SERVICES,Hire Of Premises,Ledger/Suspense Codes
Swale Borough Council,29UM,28/06/2017,1151829,300.00,PRESTON SCHOOLROOM TRUST,                         ,DEMOCRATIC & ELECTORAL SERVICES,Hire Of Premises,Ledger/Suspense Codes
Swale Borough Council,29UM,28/06/2017,1151368,310.00,PROTECTIVE FILM SOLUTIONS (EUROPE) LTD,9137987                  ,COMMUNITY SAFETY,Equipment,Not used in this Structure
Swale Borough Council,29UM,28/06/2017,1151460,875.00,REARDON PROPERTIES,                         ,HOUSING SERVICES,B & B - Landlords Payments,Housing
Swale Borough Council,29UM,28/06/2017,1151461,490.00,REARDON PROPERTIES,                         ,HOUSING SERVICES,B & B - Landlords Payments,Housing
Swale Borough Council,29UM,28/06/2017,1151462,735.00,REARDON PROPERTIES,                         ,HOUSING SERVICES,B & B - Landlords Payments,Housing
Swale Borough Council,29UM,28/06/2017,1151473,490.00,REARDON PROPERTIES,                         ,HOUSING SERVICES,B & B - Landlords Payments,Housing
Swale Borough Council,29UM,28/06/2017,1151627,735.00,REARDON PROPERTIES,                         ,HOUSING SERVICES,B & B - Landlords Payments,Housing
Swale Borough Council,29UM,28/06/2017,1151628,490.00,REARDON PROPERTIES,                         ,HOUSING SERVICES,B & B - Landlords Payments,Housing
Swale Borough Council,29UM,28/06/2017,1151629,635.00,REARDON PROPERTIES,                         ,HOUSING SERVICES,B & B - Landlords Payments,Housing
Swale Borough Council,29UM,28/06/2017,1151630,455.00,REARDON PROPERTIES,                         ,HOUSING SERVICES,B & B - Landlords Payments,Housing
Swale Borough Council,29UM,28/06/2017,1151843,250.00,RODMERSHAM VILLAGE HALL,                         ,DEMOCRATIC & ELECTORAL SERVICES,Hire Of Premises,Ledger/Suspense Codes
Swale Borough Council,29UM,28/06/2017,1151843,200.00,RODMERSHAM VILLAGE HALL,                         ,DEMOCRATIC & ELECTORAL SERVICES,Hire Of Premises,Ledger/Suspense Codes
Swale Borough Council,29UM,28/06/2017,1151623,1705.63,ROYAL MAIL GROUP LTD,4138203                  ,PROPERTY SERVICES,Postage,Holding Codes
Swale Borough Council,29UM,28/06/2017,1151766,901.10,RSP RAIL TRAVEL ACCOUNT - (DT),                         ,FINANCIAL SERVICES,Travel Warrants (Staff Travel),Internal Trading Cost Centres
Swale Borough Council,29UM,28/06/2017,1151609,440.00,SCARBOROUGH BOROUGH COUNCIL,                         ,DEMOCRATIC & ELECTORAL SERVICES,Stationery,Ledger/Suspense Codes
Swale Borough Council,29UM,28/06/2017,1151609,16.50,SCARBOROUGH BOROUGH COUNCIL,                         ,DEMOCRATIC & ELECTORAL SERVICES,Postage,Ledger/Suspense Codes
Swale Borough Council,29UM,28/06/2017,1151593,1066.28,SCOTTISH WATER BUSINESS STREAM LTD,SC294924                 ,CONTRACT & PROCUREMENT,Water - Metered,Environmental and Regulatory Services
Swale Borough Council,29UM,28/06/2017,1151597,499.49,SCOTTISH WATER BUSINESS STREAM LTD,SC294924                 ,CONTRACT & PROCUREMENT,Water - Metered,Environmental and Regulatory Services
Swale Borough Council,29UM,28/06/2017,1151651,469.62,SCOTTISH WATER BUSINESS STREAM LTD,SC294924                 ,CAR PARKS,Water - Rateable Value,Highway and Transport Services
Swale Borough Council,29UM,28/06/2017,1151652,523.79,SCOTTISH WATER BUSINESS STREAM LTD,SC294924                 ,CAR PARKS,Water - Rateable Value,Highway and Transport Services
Swale Borough Council,29UM,28/06/2017,1151654,334.20,SCOTTISH WATER BUSINESS STREAM LTD,SC294924                 ,CAR PARKS,Water - Rateable Value,Highway and Transport Services
Swale Borough Council,29UM,28/06/2017,1151655,388.37,SCOTTISH WATER BUSINESS STREAM LTD,SC294924                 ,CAR PARKS,Water - Rateable Value,Highway and Transport Services
Swale Borough Council,29UM,28/06/2017,1151656,266.49,SCOTTISH WATER BUSINESS STREAM LTD,SC294924                 ,CAR PARKS,Water - Rateable Value,Highway and Transport Services
Swale Borough Council,29UM,28/06/2017,1151659,720.15,SCOTTISH WATER BUSINESS STREAM LTD,SC294924                 ,CAR PARKS,Water - Rateable Value,Highway and Transport Services
Swale Borough Council,29UM,28/06/2017,1151662,347.74,SCOTTISH WATER BUSINESS STREAM LTD,SC294924                 ,CAR PARKS,Water - Rateable Value,Highway and Transport Services
Swale Borough Council,29UM,28/06/2017,1151664,740.46,SCOTTISH WATER BUSINESS STREAM LTD,SC294924                 ,CAR PARKS,Water - Rateable Value,Highway and Transport Services
Swale Borough Council,29UM,28/06/2017,1151666,571.19,SCOTTISH WATER BUSINESS STREAM LTD,SC294924                 ,CAR PARKS,Water - Rateable Value,Highway and Transport Services
Swale Borough Council,29UM,28/06/2017,1151832,136.00,SELLING VILLAGE HALL,                         ,DEMOCRATIC & ELECTORAL SERVICES,Hire Of Premises,Ledger/Suspense Codes
Swale Borough Council,29UM,28/06/2017,1151832,153.00,SELLING VILLAGE HALL,                         ,DEMOCRATIC & ELECTORAL SERVICES,Hire Of Premises,Ledger/Suspense Codes
Swale Borough Council,29UM,28/06/2017,1151956,2968.00,SERCO PAISA LTD - (DT),04908482                 ,LEISURE & OPEN SPACES,Contracts,Cultural and Related Services
Swale Borough Council,29UM,28/06/2017,1151632,550.00,SHARNWOOD DEVELOPMENTS LTD,                         ,HOUSING SERVICES,RDS - Landlord claim on Bond Scheme,Housing
Swale Borough Council,29UM,28/06/2017,1151833,350.00,SHEERNESS COUNTY YOUTH CLUB,                         ,DEMOCRATIC & ELECTORAL SERVICES,Hire Of Premises,Ledger/Suspense Codes
Swale Borough Council,29UM,28/06/2017,1151833,350.00,SHEERNESS COUNTY YOUTH CLUB,                         ,DEMOCRATIC & ELECTORAL SERVICES,Hire Of Premises,Ledger/Suspense Codes
Swale Borough Council,29UM,28/06/2017,1151841,192.00,SHELDWICH VILLAGE HALL,                         ,DEMOCRATIC & ELECTORAL SERVICES,Hire Of Premises,Ledger/Suspense Codes
Swale Borough Council,29UM,28/06/2017,1151841,180.00,SHELDWICH VILLAGE HALL,                         ,DEMOCRATIC & ELECTORAL SERVICES,Hire Of Premises,Ledger/Suspense Codes
Swale Borough Council,29UM,28/06/2017,1151744,1266.67,SOFA 4 U,                         ,COMMUNITY SAFETY,Furniture,Cultural and Related Services
Swale Borough Council,29UM,28/06/2017,1151647,629.30,SOLON SECURITY,03065075                 ,HOUSING SERVICES,Staying Put - Materials,Housing
Swale Borough Council,29UM,28/06/2017,1151893,6278.18,SOUTH EAST BUILDING CO LTD,1786838                  ,HOUSING SERVICES,Housing Renovation Grants,Not used in this Structure
Swale Borough Council,29UM,28/06/2017,1151836,250.00,ST MARY OF CHARITY INFANTS SCH,                         ,DEMOCRATIC & ELECTORAL SERVICES,Hire Of Premises,Ledger/Suspense Codes
Swale Borough Council,29UM,28/06/2017,1151836,250.00,ST MARY OF CHARITY INFANTS SCH,                         ,DEMOCRATIC & ELECTORAL SERVICES,Hire Of Premises,Ledger/Suspense Codes
Swale Borough Council,29UM,28/06/2017,1151611,300.00,STALISFIELD VILLAGE HALL TRUST,                         ,DEMOCRATIC & ELECTORAL SERVICES,Hire Of Premises,Ledger/Suspense Codes
Swale Borough Council,29UM,28/06/2017,1151611,300.00,STALISFIELD VILLAGE HALL TRUST,                         ,DEMOCRATIC & ELECTORAL SERVICES,Hire Of Premises,Ledger/Suspense Codes
Swale Borough Council,29UM,28/06/2017,1151837,200.00,SUNNY BANK PRIMARY SCHOOL,                         ,DEMOCRATIC & ELECTORAL SERVICES,Hire Of Premises,Ledger/Suspense Codes
Swale Borough Council,29UM,28/06/2017,1151837,200.00,SUNNY BANK PRIMARY SCHOOL,                         ,DEMOCRATIC & ELECTORAL SERVICES,Hire Of Premises,Ledger/Suspense Codes
Swale Borough Council,29UM,28/06/2017,1151668,2602.50,SWALE COMMUNITY LEISURE LIMITED,31132R                   ,DEMOCRATIC & ELECTORAL SERVICES,Hire Of Premises,Ledger/Suspense Codes
Swale Borough Council,29UM,28/06/2017,1151668,200.00,SWALE COMMUNITY LEISURE LIMITED,31132R                   ,DEMOCRATIC & ELECTORAL SERVICES,Hire Of Premises,Ledger/Suspense Codes
Swale Borough Council,29UM,28/06/2017,1151204,1100.00,SYNERGY CONST & PROP CONSULT,                         ,COMMUNITY SAFETY,Capitalised Fees And Charges,Not used in this Structure
Swale Borough Council,29UM,28/06/2017,1151838,200.00,TEYNHAM VILLAGE HALL MAN. CTTEE,                         ,DEMOCRATIC & ELECTORAL SERVICES,Hire Of Premises,Ledger/Suspense Codes
Swale Borough Council,29UM,28/06/2017,1151838,200.00,TEYNHAM VILLAGE HALL MAN. CTTEE,                         ,DEMOCRATIC & ELECTORAL SERVICES,Hire Of Premises,Ledger/Suspense Codes
Swale Borough Council,29UM,28/06/2017,1151689,267.84,THE FAVERSHAM SOCIETY,250945                   ,TOURISM & SPORTS DEVELOPMENT,Telephone,Cultural and Related Services
Swale Borough Council,29UM,28/06/2017,1151601,740.00,TIME ASSURED LIMITED,7483197                  ,PROPERTY SERVICES,Service Contracts,Cultural and Related Services
Swale Borough Council,29UM,28/06/2017,1151755,335.00,TOWN AND COUNTRY PLANNING ASSOCIATION,146309                   ,PLANNING SERVICES,Newspapers & Periodicals,Internal Trading Cost Centres
Swale Borough Council,29UM,28/06/2017,1151755,238.00,TOWN AND COUNTRY PLANNING ASSOCIATION,146309                   ,PLANNING SERVICES,Newspapers & Periodicals,Internal Trading Cost Centres
Swale Borough Council,29UM,28/06/2017,1151648,1750.00,TRAFALGAR TAVERN LTD,07999329                 ,HOUSING SERVICES,B & B - Landlords Payments,Housing
Swale Borough Council,29UM,28/06/2017,1151614,1191.82,UK PAPER LEISURE CLUB,                         ,DEMOCRATIC & ELECTORAL SERVICES,Hire Of Premises,Ledger/Suspense Codes
Swale Borough Council,29UM,28/06/2017,1151860,4600.00,VISIT KENT,                         ,TOURISM & SPORTS DEVELOPMENT,Fees And Services,Cultural and Related Services
Swale Borough Council,29UM,28/06/2017,1151583,1330.00,VIVID RESOURCING LIMITED,06459262                 ,PLANNING SERVICES,Agency/Contract Staff,Internal Trading Cost Centres
Swale Borough Council,29UM,28/06/2017,1151584,1680.00,VIVID RESOURCING LIMITED,06459262                 ,PLANNING SERVICES,Agency/Contract Staff,Internal Trading Cost Centres
Swale Borough Council,29UM,28/06/2017,1151751,1391.25,VIVID RESOURCING LIMITED,06459262                 ,PLANNING SERVICES,Agency/Contract Staff,Internal Trading Cost Centres
Swale Borough Council,29UM,28/06/2017,1151752,1543.50,VIVID RESOURCING LIMITED,06459262                 ,PLANNING SERVICES,Agency/Contract Staff,Internal Trading Cost Centres
Swale Borough Council,29UM,28/06/2017,1151844,250.00,WARDEN VILLAGE HALL,                         ,DEMOCRATIC & ELECTORAL SERVICES,Hire Of Premises,Ledger/Suspense Codes
Swale Borough Council,29UM,28/06/2017,1151844,250.00,WARDEN VILLAGE HALL,                         ,DEMOCRATIC & ELECTORAL SERVICES,Hire Of Premises,Ledger/Suspense Codes
Swale Borough Council,29UM,28/06/2017,1151808,480.00,WEST FAVERSHAM COMMUNITY ASSOCIATION,                         ,DEMOCRATIC & ELECTORAL SERVICES,Hire Of Premises,Ledger/Suspense Codes
Swale Borough Council,29UM,28/06/2017,1151197,605.44,WHISTL UK LIMITED,04417047                 ,REVENUE SERVICES,Postage,Central Services to the Public
Swale Borough Council,29UM,28/06/2017,1151197,1.09,WHISTL UK LIMITED,04417047                 ,PLANNING SERVICES,Postage,Planning and Development Services
Swale Borough Council,29UM,28/06/2017,1151197,302.72,WHISTL UK LIMITED,04417047                 ,REVENUE SERVICES,Postage,Housing
Swale Borough Council,29UM,28/06/2017,1151197,2.77,WHISTL UK LIMITED,04417047                 ,LEISURE & OPEN SPACES,Postage,Internal Trading Cost Centres
Swale Borough Council,29UM,28/06/2017,1151197,19.30,WHISTL UK LIMITED,04417047                 ,CAR PARKS,Postage,Internal Trading Cost Centres
Swale Borough Council,29UM,28/06/2017,1151197,39.39,WHISTL UK LIMITED,04417047                 ,PROPERTY SERVICES,Postage,Holding Codes
Swale Borough Council,29UM,28/06/2017,1151197,319.12,WHISTL UK LIMITED,04417047                 ,DEMOCRATIC & ELECTORAL SERVICES,Postage,Central Services to the Public
Swale Borough Council,29UM,28/06/2017,1151341,399.40,WHISTL UK LIMITED,04417047                 ,REVENUE SERVICES,Postage,Central Services to the Public
Swale Borough Council,29UM,28/06/2017,1151341,199.69,WHISTL UK LIMITED,04417047                 ,REVENUE SERVICES,Postage,Housing
Swale Borough Council,29UM,28/06/2017,1151341,3.02,WHISTL UK LIMITED,04417047                 ,LEISURE & OPEN SPACES,Postage,Internal Trading Cost Centres
Swale Borough Council,29UM,28/06/2017,1151341,28.43,WHISTL UK LIMITED,04417047                 ,CAR PARKS,Postage,Internal Trading Cost Centres
Swale Borough Council,29UM,28/06/2017,1151341,54.22,WHISTL UK LIMITED,04417047                 ,PROPERTY SERVICES,Postage,Holding Codes
Swale Borough Council,29UM,28/06/2017,1151341,61.50,WHISTL UK LIMITED,04417047                 ,DEMOCRATIC & ELECTORAL SERVICES,Postage,Central Services to the Public
Swale Borough Council,29UM,28/06/2017,1151570,1047.56,WHISTL UK LIMITED,04417047                 ,REVENUE SERVICES,Postage,Central Services to the Public
Swale Borough Council,29UM,28/06/2017,1151570,7.06,WHISTL UK LIMITED,04417047                 ,PLANNING SERVICES,Postage,Planning and Development Services
Swale Borough Council,29UM,28/06/2017,1151570,523.77,WHISTL UK LIMITED,04417047                 ,REVENUE SERVICES,Postage,Housing
Swale Borough Council,29UM,28/06/2017,1151570,18.53,WHISTL UK LIMITED,04417047                 ,LEISURE & OPEN SPACES,Postage,Internal Trading Cost Centres
Swale Borough Council,29UM,28/06/2017,1151570,14.68,WHISTL UK LIMITED,04417047                 ,CAR PARKS,Postage,Internal Trading Cost Centres
Swale Borough Council,29UM,28/06/2017,1151570,52.64,WHISTL UK LIMITED,04417047                 ,PROPERTY SERVICES,Postage,Holding Codes
Swale Borough Council,29UM,28/06/2017,1151570,32.27,WHISTL UK LIMITED,04417047                 ,DEMOCRATIC & ELECTORAL SERVICES,Postage,Central Services to the Public
Swale Borough Council,29UM,28/06/2017,1151225,325.00,WILLOW PUMPS LTD,2762063                  ,LEISURE & OPEN SPACES,Maintenance - Grounds,Cultural and Related Services
Swale Borough Council,29UM,28/06/2017,1151953,3917.32,WORLDPAY (DT),07316500                 ,REVENUE SERVICES,Commission Paid,Central Services to the Public
Swale Borough Council,29UM,28/06/2017,1151953,273.63,WORLDPAY (DT),07316500                 ,REVENUE SERVICES,Commission Paid,Central Services to the Public
Swale Borough Council,29UM,28/06/2017,1151953,33.58,WORLDPAY (DT),07316500                 ,REVENUE SERVICES,Commission Paid,Housing
Swale Borough Council,29UM,28/06/2017,1151953,19.15,WORLDPAY (DT),07316500                 ,EXCHEQUER,Commission Paid,Internal Trading Cost Centres
Swale Borough Council,29UM,28/06/2017,1151953,730.57,WORLDPAY (DT),07316500                 ,EXCHEQUER,Commission Paid,Internal Trading Cost Centres
Swale Borough Council,29UM,28/06/2017,1151953,17.67,WORLDPAY (DT),07316500                 ,EXCHEQUER,Commission Paid,Internal Trading Cost Centres
Swale Borough Council,29UM,28/06/2017,1151953,9.99,WORLDPAY (DT),07316500                 ,MKS ICT,Fees And Services,Internal Trading Cost Centres
